Workbook

Sheet Inhuurformulier
A1: Inhuurformulier ICT-Professional(s) Rijk | C1: Referentienummer | H1: ='Brongegevens dienst'!B12 -> 1.1
A2: =CONCATENATE("AV",D1) -> AV | B2: ='Brongegevens dienst'!A10 -> K:\5 Inkooptrajecten\5.7 Inhuur\ICT\
A4: Soort minicompetitie*
A5: Type Aanvraag* | C5: è Toelichting aanvraag
A6: Eventueel maximum uurtarief
A7: Spoedaanvraag* | B7: Nee
A9: Verwacht aantal gunningen (FTE) bij deze aanvraag* | B9: 1 | C9: Bij meerdere geschikte kandidaten behoudt de dienst zich het recht voor om meerdere gunningen te doen. | D9: Voor opdrachtnemers : U moet bij deze aanvraag minimaal één regel rapporteren. Indien u meer kandidaten mag aanbieden en u doet dit ook, dan moet u uiteraard ook meer regels invullen bij de rapportage. Correspondentie over deze aanvraag via onderstaand e-mailadres.
A11: Max. aantal CV's (Offertes) per opdrachtnemer* | B11: 1
A13: Formulier volledig invullen. Velden met een * zijn verplicht in te vullen. Zie ook werkblad "Hulp bij invullen". | D13: ='Brongegevens dienst'!B20 -> iuc-inhuur@iuc-noord.nl
B15: AANVRAGER
A17: Ministerie* | B17: OCW
A18: Deelnemer* | B18: AWTI
A19: Afdeling/ Bedrijfsonderdeel*
A21: Inhurend manager
B23: OPDRACHT
A24: De opdracht is geschikt voor een zelfstandige
A25: Opdrachtbeschrijving * - werkzaamheden of - prestatiedoelstelling
A27: Achtergrond opdracht*
A29: Organisatorische context en cultuur | B29: =IF(B18="","",VLOOKUP(B18,'Brongegevens dienst'!D3:G12,4)) -> De Adviesraad voor wetenschap, technologie en innovatie (AWTI) is de onafhankelijke adviesraad van de regering en het parlement op het terrein van wetenschap, technologie en innovatie. Met zijn strategische beleidsadviezen wil de AWTI bijdragen aan het versterken van de innovatieve, wetenschappelijke en technologische kracht van mensen, bedrijven en kennisinstellingen in Nederland. En daarmee aan een toekomstbestendige Nederlandse economie en samenleving.
B31: PLANNING
A33: Planning | B33: Datum offerte aanvraag* | C33: =NOW() -> 2025-11-03T16:38:54.940 | D33: =NOW() -> 45964.69369
B35: Eindmoment stellen van vragen* | C35: =IF(C33>0,WORKDAY(C33,1,Feestdagen),"") -> 2025-11-04 | D35: =D33 -> 45964.69369
B36: Eindmoment beantwoording vragen* | C36: =IF(C35>0,WORKDAY(C35,1,Feestdagen),"") -> 2025-11-05 | D36: =D33 -> 45964.69369
B38: Indienen offertes* | C38: =IF(C36>0,WORKDAY(C36,2,Feestdagen),"") -> 2025-11-07 | D38: =D33 -> 45964.69369
B40: Data selectie/verificatie gesprekken
B42: Streefdatum mededeling gunning*
A44: Inkoper | B44: Behandelend inkoper
B47: SELECTIE PROFIEL UIT KWALITEITSRAAMWERK IINFORMATIEVOORZIENING (KWIV)
A48: Selecteer het gewenste KWIV Profiel voor deze functie. Voor meer informatie over het profiel ga naar https://kwiv.rijksapplicaties.nl/
A50: KWIV Profiel* | B50: 1.1.3 APPLICATIEARCHITECTUUR | D50: KWIV Rijksapplicatie
A51: Functiefamilie | B51: =IF($B$50="","",VLOOKUP(B50,KWIV!B3:E66,2,FALSE)) -> Uitvoering | C51: Bijbehorende competenties | D51: Kwaliteitsraamwerk-informatievoorziening
A52: Functiegroep | B52: =IF($B$50="","",VLOOKUP(B50,KWIV!B3:E66,3,FALSE)) -> Expert IV
A53: Schaalrange | B53: =IF($B$50="","",VLOOKUP(B50,KWIV!B3:E66,4,FALSE)) -> S11-13
A55: Schaal conform salarisschaal Rijk*
A57: Functienaam (roepnaam)*
B59: EISEN BIJ DEZE AANVRAAG | C59: â Let op! Eisen zijn knock-out criteria, SMART/meetbaar maken
B60: Professionele Kennisgebieden* | C60: Opleiding, Certificaten, Kennisniveau*
A61: KWIV Profiel*
B65: Kwaliteitenprofielen | C65: Opleiding, Certificaten, Kennisniveau
A66: Overige vereiste kennisgebieden uit KWIV
H69: Bewezen aantal jaar
B70: Werk- en denkniveau (algemeen en specifiek)
A71: Ervaring
B75: KWALITIEITS WENSEN BIJ DEZE AANVRAAG
A77: Competenties
A82: Aanvullende kennis en ervaring
A87: Overige kwaliteits functie wensen
B92: WEGING GUNNINGSCRITERIA
A93: Vul een waarde in, indien een criterium van toepassing is. Totaal van alle ingevulde criteria moet gelijk zijn aan 100.
A95: Criteria* | B95: 1. Tarief | D95: Ja
B96: 2. Duurzaamheidsaspecten en social return doelgroep bij inzet van de Kandidaat | D96: Ja | F96: Ja
B97: 3. Relevante werkervaring van de Kandidaat | D97: Ja | F97: Ja
B98: 4. Kennis en vaardigheden van de Kandidaat | D98: Ja | F98: Ja
B99: 5. Beschikbaarheid Kandidaat | D99: Ja | F99: Ja
B100: 6. Mate waarin de Kandidaat de opdracht begrijpt | G100: Ja
B101: 7. Kandidaat past bij organisatie | G101: Ja
B102: 8. Plan van aanpak uitvoering opdracht | D102: Ja | F102: Ja
B103: Totaal | C103: =SUM(C95:C102) -> 0 | D103: Beoordeling o.b.v. Offerte | E103: Verificatie in selectiegesprek | G103: Beoordeling o.b.v. selectiegesprek
A105: Toelichting duurzaamheid (verplicht indien meetellend voor gunning)
A107: Toelichting beschikbaarheid (verplicht indien meetellend voor gunning)
B109: INZETGEGEVENS
A111: Inzetgegevens | B111: Gewenste startdatum*
B112: Initiële einddatum* | D112: Aantal maanden initiële inhuurtermijn | G112: =IF(C112<>0,IF(DAY(C112)>=DAY(C111),0,-1)+(YEAR(C112)-YEAR(C111)) *12+MONTH(C112)-MONTH(C111)+1,0) -> 0
B114: Optie op verlenging* | C114: Nee
B115: Verlengingsinformatie gebaseerd op periode(s) | D115: of Verlengingsinformatie gebaseerd op een project
B116: Maximaal aantal verlengingen | D116: Geplande einddatum project
B117: Termijn per verlenging in maanden | D117: =IF(C114="Ja",IF(OR(C116<>0,C117<>0),IF(F116<>0,"Slechts één deel verlengingsinformatie invullen",""),""),"") -> 
B118: =IF(C112>0,"Verwachte uiterste einddatum inzet","") ->  | C118: =IF(C112>0,IF(C114="Ja",IF(C116*C117>0,IF(C112>0,EDATE(C112,C116*C117),IF(C112>0,C112,"")),IF(F116>0,F116,C112)),IF(C112>0,C112,"")),"") ->  | F118: =IF(B5="Strippenkaart","In te vullen bij Strippenkaart","") -> 
B119: Uren per week* | D119: =IF(B5="Strippenkaart","Uren per week is 0 bij een strippenkaart. Maximaal aantal uur is dan wel verplicht.","") ->  | F119: =IF(B5="Strippenkaart","Beschikbaar na oproep in uren","") -> 
B120: Max. aantal uren initiële inhuurtermijn* | C120: =(NETWORKDAYS(C111,C112,'Brongegevens dienst'!I4:R27)*(C119/5)) -> 0 | F120: =IF(B5="Strippenkaart","Optie maximaal aantal uren bij uit- breiden/verlengen","") -> 
B122: Vergoeding dienstreizen inbegrepen in tarief Toelichting | C122: Ja
B125: Postcode hoofdstandplaats
B126: Naam hoofdstandplaats*
B127: Extra standplaats(en) | D127: Toelichting extra standplaats (bv. frequentie over bezoek)
B129: Screeningsitems VOG | C129: 11, 12, 41
B130: Veiligheidsonderzoek vereist* | C130: Nee
B131: VOG aanwezig voor start inzet* | C131: Ja
B132: Werknemers met soortgelijke kennis en expertise in dienst Deelnemer* | C132: Ja
B133: Vrije vervanging toegestaan* | C133: Ja
B134: Parttimers toegestaan* | C134: Nee
B135: Hybride werken bespreekbaar* | C135: Ja
B136: Onregelmatige diensten | C136: Nee
B137: Consignatiediensten* | C137: Nee
B138: Betrokkenheid bij aanbestedingen* | C138: Nee

Sheet KWIV (hidden)
B1: KWALITEITSRAAMWERK INFORMATIEVOORZIEING (KWIV)
B2: Kwaliteitenprofiel | C2: Functiefamilie | D2: Functiegroep | E2: Schaal range
B3: 1.1.1 INFORMATIEARCHITECTUUR | C3: Uitvoering | D3: Expert IV | E3: S11-13
B4: 1.1.2 FUNCTIONEEL ONTWERP/STARTARCHITECTUUR | C4: Uitvoering | D4: Senior Medewerker IV | E4: S8-11
B5: 1.1.3 APPLICATIEARCHITECTUUR | C5: Uitvoering | D5: Expert IV | E5: S11-13
B6: 1.1.4 TECHNISCHE ARCHITECTUUR | C6: Uitvoering | D6: Expert IV | E6: S11-13
B7: 1.1.5 SYSTEEMARCHITECTUUR | C7: Uitvoering | D7: Expert IV | E7: S11-13
B8: 1.1.6 ENTERPRISE ARCHITECTUUR | C8: Uitvoering | D8: Expert IV | E8: S11-13
B9: 1.2.1 INFORMATIEBELEID | C9: Advisering | D9: Coördinerend Specialistisch Adviseur | E9: S13-15
B10: 1.2.2 INNOVATIEMANAGEMENT | C10: Advisering | D10: (Senior) Adviseur | E10: S11-13
B11: 1.2.3 MANAGEMENT INFORMATIEVOORZIENING | C11: Advisering | D11: (Senior) Adviseur | E11: S11-13
B12: 1.3.1 SOURCING MANAGEMENT | C12: Uitvoering | D12: Senior Medewerker Behandelen en Ontwikkelen | E12: S11-13
B13: 2.1.1 APPLICATIEONTWIKKELING | C13: Uitvoering | D13: Senior Medewerker IV | E13: S8-11
B14: 2.1.2 SYSTEEMONTWIKKELING | C14: Uitvoering | D14: Senior Medewerker IV | E14: S8-11
B15: 2.1.3 NETWERKONTWIKKELING | C15: Uitvoering | D15: Senior Medewerker IV | E15: S8-11
B16: 2.1.4 DATA ENGINEERING | C16: Uitvoering | D16: Senior Medewerker IV | E16: S8-11
B17: 2.2.1 TESTMANAGEMENT | C17: Uitvoering | D17: Senior Medewerker IV | E17: S8-11
B18: 3.1.1 SYSTEEMBEHEER | C18: Uitvoering | D18: Senior Medewerker IV | E18: S8-11
B19: 3.1.2 CHANGE MANAGEMENT | C19: Uitvoering | D19: Senior Medewerker IV | E19: S8-11
B20: 3.1.3 FUNCTIONEEL BEHEER | C20: Uitvoering | D20: Senior Medewerker IV | E20: S8-11
B21: 3.1.4 SERVERBEHEER | C21: Uitvoering | D21: Senior Medewerker IV | E21: S8-11
B22: 3.1.5 NETWERKBEHEER | C22: Uitvoering | D22: Senior Medewerker IV | E22: S8-11
B23: 3.1.6 APPLICATIEBEHEER | C23: Uitvoering | D23: Senior Medewerker IV | E23: S8-11
B24: 3.1.7 DATABASEBEHEER | C24: Uitvoering | D24: Senior Medewerker IV | E24: S8-11
B25: 3.1.8 RECORDBEHEER | C25: Uitvoering | D25: Medewerker IV | E25: S8-9
B26: 3.1.9 DATA STEWARDSHIP | C26: Uitvoering | D26: Senior Medewerker IV | E26: S8-11
B27: 3.2.1 TECHNICAL SUPPORT | C27: Uitvoering | D27: Senior Medewerker IV | E27: S8-11
B28: 3.2.2 1e LIJNS GEBRUIKERSONDERSTEUNING | C28: Uitvoering | D28: Medewerker Verwerken en Behandelen | E28: S3-8
B29: 3.2.3 INCIDENT MANAGEMENT | C29: Uitvoering | D29: Senior Medewerker IV | E29: S8-11
B30: 3.2.4 PROBLEM MANAGEMENT | C30: Uitvoering | D30: Senior Medewerker IV | E30: S8-11
B31: 3.3.1 SERVICE LEVEL MANAGEMENT | C31: Uitvoering | D31: Senior Medewerker Behandelen en Ontwikkelen | E31: S11-13
B32: 3.3.2 CAPACITY MANAGEMENT | C32: Uitvoering | D32: Senior Medewerker IV | E32: S8-11
B33: 3.3.3 CONFIGURATION MANAGEMENT | C33: Uitvoering | D33: Senior Medewerker IV | E33: S8-11
B34: 3.3.4 RELEASE MANAGEMENT | C34: Uitvoering | D34: Senior Medewerker IV | E34: S8-11
B35: 4.1.1 SECURITY MANAGEMENT | C35: Uitvoering | D35: Expert IV | E35: S11-13
B36: 4.1.2 INFORMATIERISICOMANAGEMENT | C36: Advisering | D36: (Senior) Adviseur | E36: S11-13
B37: 4.1.3 CYBERSECURITY MANAGEMENT | C37: Uitvoering | D37: Expert IV | E37: S11-13
B38: 4.2.1 CATEGORIEMANAGEMENT IV | C38: Uitvoering | D38: Senior Medewerker Behandelen en Ontwikkelen | E38: S11-13 of S13-15
B39: 4.2.2 INKOOP IV | C39: Uitvoering | D39: Senior Medewerker Behandelen en Ontwikkelen | E39: S11-13
B40: 4.2.3 RELATIEMANAGEMENT IV | C40: Uitvoering | D40: Senior Medewerker Behandelen en Ontwikkelen | E40: S11-13
B41: 4.2.4 CONTRACT-/LEVERANCIERMANAGEMENT IV | C41: Uitvoering | D41: Expert IV | E41: S11-13
B42: 4.3.1 INFORMATIEANALYSE | C42: Uitvoering | D42: Senior Medewerker Behandelen en Ontwikkelen | E42: S11-13
B43: 4.3.2 BUSINESS ANALYSE | C43: Uitvoering | D43: Senior Medewerker Behandelen en Ontwikkelen | E43: S11-13
B44: 4.3.3 BUSINESS INTELLIGENCE/DATA ANALYSE | C44: Uitvoering | D44: Expert IV | E44: S11-13
B45: 4.3.4 DATA SCIENCE | C45: Uitvoering | D45: Senior Medewerker Behandelen en Ontwikkelen | E45: S11-13
B46: 4.4.1 INFORMATIECOACHING | C46: Uitvoering | D46: Medewerker Behandelen en Ontwikkelen | E46: S9-10 of S8-11
B47: 4.4.2 LEER- EN ONTWIKKELMANAGEMENT | C47: Uitvoering | D47: Senior Medewerker Behandelen en Ontwikkelen | E47: S11-13
B48: 4.4.3 (AGILE) COACHING | C48: Uitvoering | D48: Senior Medewerker Behandelen en Ontwikkelen | E48: S11-13
B49: 4.5.1 PRODUCT OWNER | C49: Uitvoering | D49: Expert IV | E49: S11-13
B50: 4.5.2 PRODUCT MANAGER | C50: Uitvoering | D50: Expert IV | E50: S11-13
B51: 4.5.3 BUSINESS OWNER (GEDELEGEERD) | C51: Uitvoering | D51: Senior Medewerker Behandelen en Ontwikkelen | E51: S11-13 of S13-15
B52: 4.6.1 SERVICE DESIGN | C52: Uitvoering | D52: Expert IV | E52: S11-13
B53: 4.6.2 USER INTERFACE DESIGN | C53: Uitvoering | D53: Expert IV | E53: S11-13
B54: 4.6.3 UX RESEARCH | C54: Uitvoering | D54: Expert IV | E54: S11-13
B55: 5.1.1 PROJECTLEIDERSCHAP IV | C55: Project-/Programmamanagement | D55: Projectleider | E55: S9-11 of S12-15
B56: 5.1.2 PROJECTMANAGEMENT IV | C56: Project-/Programmamanagement | D56: Project-/Programmamanager | E56: S12-15
B57: 5.1.3 PROGRAMMAMANAGEMENT IV | C57: Project-/Programmamanagement | D57: Project-/Programmamanager | E57: S12-15
B58: 5.1.4 PORTFOLIOMANAGEMENT IV | C58: Uitvoering | D58: Senior Medewerker Behandelen en Ontwikkelen | E58: S11-13
B59: 5.2.1 SCRUM MASTER | C59: Uitvoering | D59: Expert IV | E59: S11-13
B60: 5.2.2 RELEASE TRAIN ENGINEER | C60: Uitvoering | D60: Expert IV | E60: S11-13
B61: 5.3.1 INFORMATIEMANAGEMENT | C61: Uitvoering | D61: Senior Medewerker Behandelen en Ontwikkelen | E61: S11-13
B62: 5.3.2 DATA-/GEGEVENSMANAGEMENT | C62: Uitvoering | D62: Senior Medewerker Behandelen en Ontwikkelen | E62: S11-13
B63: 5.3.3 RECORDMANAGEMENT | C63: Uitvoering | D63: Senior Medewerker IV | E63: S8-11
B64: 5.3.4 METADATA-/GEGEVENSMANAGEMENT | C64: Uitvoering | D64: Medewerker Behandelen en Ontwikkelen | E64: S9-10
B65: 5.3.5 KWALITEITSMANAGEMENT IV | C65: Uitvoering | D65: Expert IV | E65: S11-13
B66: 5.4.1 IT-CONTROL | C66: Uitvoering | D66: Senior Medewerker Behandelen en Ontwikkelen | E66: S11-13

Sheet Hulp bij invullen
A1: Aanvragen juist in de markt plaatsen
A3: 1. Enkelvoudige reguliere aanvraag zonder extra opties? | C3: Ga naar stap 3 | H3: Niet doen bij het invullen van aanvragen ICT Inhuur!!
A5: 2. Meerdere FTE's nodig? | C5: In negen van de tien gevallen gewoon als reguliere aanvraag zonder extra opties. Let wel op dat de eisen in proportie blijven (werk en denkniveau i.p.v. diploma, aantal jaren ervaring van iemand die iets dedicated heeft gedaan kan lager. Vermijdt ook ervaringseisen gerelateerd aan een specifieke klant). | H5: Teveel Fte’s op 1 aanvraag. Geef opdrachnemers de ruimte meer cv’s in te dienen en voeg de regel toe: ‘in geval meerdere kandidaten geschikt worden bevonden, behoudt de dienst zich het recht voor meerdere gunningen te doen.’ Op de aanvraag aangeven dat het om een aangewezen / gerede kandidaat of warme stoel gaat. De ADR verklaart dit onrechtmatig! Verambtelijken zonder de nog lopende NOK te respecteren! Wensen als eis opnemen! Bijv. Bij voorkeur heeft de kandidaat…. Dit suggereert een wens en moet dan ook als wens worden genoteerd. Telefonisch toelichting geven aan een opdrachtnemer zonder dit ook te delen met de andere opdrachtnemers.
C8: Voeg eventueel de volgende regel toe bij de aanvraag: In geval meerdere kandidaten geschikt worden bevonden, behoudt de dienst zich het recht voor meerdere gunningen te doen. Afhankelijk van de hoeveelheid Fte’s, kan dan eventueel nog op de aanvraag worden meegegeven dat er bijv. 3 cv’s per opdrachtnemer mogen worden ingediend. Opdrachtnemers worden dan qua aanbiedingsbetrouwbaarheid niet benadeeld (KPI ziet op het indienen van minimaal 1 cv) en hebben de mogelijkheid door het indienen van meer cv’s ook met het tarief meer ruimte te pakken (een dure kandidaat kan direct worden gecompenseerd met een iets goedkopere kandidaat). Vermijdt onnodige clustering van aanvragen, maar zet ze zoveel mogelijk als aparte aanvragen uit, waar mogelijk ook verspreid in de tijd (met vooraankondiging van gelijkwaardige aanvragen). Breid de reguliere inschrijvingstijd uit, als dat kan.
A13: 3. Schaars profiel en mogelijk lastig in te vullen (zie ook 5)? | C13: Optie 1: zet de aanvraag uit als regulier met een max. tarief (geen aanbiedingsplicht, maar ook zekerheid dat afhankelijkheid/schaarste niet leidt tot voor klant onacceptabel tarief) Optie 2: zet de aanvraag uit tegen een hogere salarisschaal Rijk Optie 3: maak de aanvraag vrijblijvend (geen aanbiedingsplicht, tarief afhankelijk van actuele schaarste en mate van concurrentie) Optie 4: zet de aanvraag uit als regulier, maar geef de opdrachtnemers langer de kans om te zoeken (schuif de datum ‘indienen offerte’ verder in de tijd.) Optie 5: doe een vooraankondiging dat de aanvragen er eerdaags (bijv. over twee weken) aankomen met een ruwe indicatie van de profielen, niveau, tarief/schaal Optie 6: zet de aanvraag uit en beleg een conference call waarin de opdrachtnemers, de inhurend manager en een inkoopvertegenwoordiger aanwezig zijn om in 1 x keer binnen korte tijd alle vragen helder te krijgen en te beantwoorden. Optie 7: beleg op voorhand een opdrtachtnemersmeeting waarin de manager de aanvraag (en het project) kan toelichten en breng daarna pas de aanvraag in de markt. Optie 8: voor schaarse profielen waaraan een constante behoefte is: zet een aanvraag proactief uit met een langere inschrijvingstijd (bijv. 1 maand). Herhaal deze zo vaak als nodig. Worden geschikte kandidaten gevonden, kan achteraf alsnog een vrijblijvende aanvraag worden uitgezet. Er geldt geen aanbiedingsplicht. Optie 9: vermijdt in elk geval onnodige clustering van aanvragen met schaars profiel en wees zeer terughoudend bij het formuleren van eisen aan de kandidaat. Overweeg om eisen om te zetten naar kwaliteits wensen.
A22: 4. Veel profielen in een kort tijdsbestek? | C22: Optie 1: beleg op voorhand een opdrachtnemersmeeting waarin de manager de aanvragen (en het project) kan toelichten en breng daarna pas de aanvragen in de markt. Optie 2: zet de aanvragen uit als regulier, maar geef de opdrachtnemers langer de kans om te zoeken (schuif de datum ‘indienen offerte’ verder in de tijd.) Optie 3: doe een vooraankondiging dat de aanvragen er eerdaags (bijv. over twee weken) aankomen met een ruwe indicatie van de profielen, niveau, tarief/schaal
A26: 5. Schaarste moeilijk in te schatten ? | C26: optie 1: neem contact op met de decentrale contractmanager bij je ministerie of de centrale contractmanager van de categorie. Deze heeft misschien ook informatie over soortgelijke profielen bij andere opdrachtgevers. optie 2: vraag informatie op bij de opdrachtnemers en leg zo mogelijk een indicatief profiel uit met het verzoek daarop te reageren (kandidaat aanbieden wel/niet mogelijk binnen toegestane afwijking van overheidstarieven, welke eisen in de aanvraag worden als knelpunt ervaren).

Sheet Info VOG Items (hidden)
B1: VOG Overzicht Items
B3: Specifiek screeningsprofiel
A4: 01 | B4: Politieke ambtsdragers
A5: 06 | B5: Visum en emigratie
A6: 25 | B6: (Buitengewoon) opsporingsambtenaar
A7: 40 | B7: Vakantiegezinnen en adoptie
A8: 45 | B8: Gezondheidszorg en welzijn van mens en dier
A9: 50 | B9: Exploitatievergunning; Dit screeningsprofiel is van toepassing bij het aanvragen van een exploitatievergunning voor een horecabedrijf bij de gemeente
A10: 55 | B10: Juridische dienstverlening
A11: 60 | B11: Onderwijs Dit screeningsprofiel is van toepassing op al het personeel dat werkzaam is bij een educatieve instelling
A12: 65 | B12: Taxibranche; chauffeurskaart Dit screeningsprofiel kan alleen worden gebruikt als Kiwa Register B.V. de organisatie is die de VOG verlangt
A13: 70 | B13: Taxibranche; ondernemersvergunning Dit screeningsprofiel kan alleen worden gebruikt als Kiwa Register B.V. de organisatie is die de VOG verlangt
A14: 75 | B14: (Gezins)voogd bij voogdijinstellingen, reclasseringswerker, raadsonderzoeker en maatschappelijk werker
A15: 80 | B15: Beëdigd tolken/vertalers Dit screeningsprofiel kan alleen worden gebruikt als de Raad voor Rechtsbijstand de organisatie is die de VOG verlangt
A16: 85 | B16: Lidmaatschap schietvereniging
A17: 95 | B17: Financiële dienstverlening
B18: Algemeen screeningsprofiel
A19: 11 | B19: Bevoegdheid hebben tot het raadplegen en/of bewerken van systemen
A20: 12 | B20: Met gevoelige/vertrouwelijke informatie omgaan
A21: 13 | B21: Kennis dragen van veiligheidssystemen, controlemechanismen en verificatieprocessen
B22: Geld
A23: 21 | B23: Met contante en/of girale gelden en/of (digitale) waardepapieren omgaan
A24: 22 | B24: Budgetbevoegdheid hebben
B25: Goederen
A26: 36 | B26: Het bewaken van productieprocessen
A27: 37 | B27: Het beschikken over goederen
A28: 38 | B28: Het voorhanden hebben van stoffen, objecten en voorwerpen e.d., die bij oneigenlijk of onjuist gebruik een risico vormen voor mens (en dier)
B29: Diensten
A30: 41 | B30: Het verlenen van diensten (advies, beveiliging, schoonmaak, catering, onderhoud, etc)
A31: 43 | B31: Het verlenen van diensten in de persoonlijke leefomgeving
B32: Zakelijke transacties
A33: 53 | B33: Beslissen over offertes (het voeren van onderhandelingen en het afsluiten van contracten) en het doen van aanbestedingen
B34: Proces
A35: 61 | B35: Het onderhouden/ombouwen/bedienen van (productie)machines en/of apparaten, voertuigen en/of luchtvaartuigen
A36: 62 | B36: (Rijdend) vervoer waarbij goederen, producten, post en pakketten worden getransporteerd en/of bezorgd, anders dan het intern transport binnen een bedrijf
A37: 63 | B37: (Rijdend) vervoer waarbij personen worden vervoerd
B38: Aansturen organisatie
A39: 71 | B39: Personen die vanuit hun functie mensen en/of een organisatie (of een deel daarvan) aansturen
B40: Personen
A41: 84 | B41: Belast zijn met de zorg voor minderjarigen
A42: 85 | B42: Belast zijn met de zorg voor (hulpbehoevende) personen, zoals ouderen en gehandicapten
A43: 86 | B43: Kinderopvang (alleen aanvinken in combinatie met andere functieaspecten)

Sheet Overzicht inhuurdesk (hidden)
A1: Overzicht aanbiedingen | G1: Referentienummer | J1: =Inhuurformulier!D1 -> 0 | P1: Status Aanvraag | T1: Open | Y1: ='Brongegevens dienst'!B12 -> 1.1
A2: =Inhuurformulier!B57 -> 0
A3: AANVRAAGGEGEVENS | P3: WAARDEN REKENREGELS | X3: AANMAKEN DOCUMENTEN
F4: =Inhuurformulier!C111 -> 0
A5: Ministerie | C5: =Inhuurformulier!B17 -> OCW | F5: =Inhuurformulier!C112 -> 0 | G5: Inhurend manager | J5: =Inhuurformulier!B21 -> 0 | P5: Criterium tarief | U5: =Inhuurformulier!C95 -> 0 | AB5: Stamlocatie | AC5: ='Brongegevens dienst'!A10 -> K:\5 Inkooptrajecten\5.7 Inhuur\ICT\
A6: Deelnemer | C6: =Inhuurformulier!B18 -> AWTI | F6: =Inhuurformulier!C119 -> 0 | P6: Aantal maanden initiële inhuur | U6: =Inhuurformulier!G112 -> 0 | AB6: Locatie | AC6: =CONCATENATE('Brongegevens dienst'!A10,"AV",J1,"\") -> K:\5 Inkooptrajecten\5.7 Inhuur\ICT\AV0\
A7: Dienstonderdeel | C7: =Inhuurformulier!B19 -> 0 | F7: =Inhuurformulier!B5 -> 0 | P7: Aanvraagdatum | U7: =Inhuurformulier!C33 -> 2025-11-03T16:38:54.940 | AB7: Naam AV-document | AC7: =CONCATENATE("AV",J1) -> AV0
C8: =Inhuurformulier!B57 -> 0 | D8: =Inhuurformulier!B50 -> 1.1.3 APPLICATIEARCHITECTUUR | E8: =Inhuurformulier!B3 -> 0 | F8: ="Nee" -> Nee | P8: Startdatum bij gunning | U8: =Inhuurformulier!C111 -> 00:00:00 | AB8: Naam OF-document | AC8: =CONCATENATE("OF",J1) -> OF0
C9: =Inhuurformulier!B55 -> 0 | D9: =IF(Inhuurformulier!B6>0,"Ja","Nee") -> Nee | E9: =Inhuurformulier!D3 -> 0 | F9: =Inhuurformulier!B9 -> 1 | P9: Aantal gunningen bij deze aanvraag | U9: 1 | AB9: Naam RI-document | AC9: =CONCATENATE("RI",J1) -> RI0
C10: =Inhuurformulier!B52 -> Expert IV | D10: =Inhuurformulier!B9 -> 1 | E10: =Inhuurformulier!C44 -> 0 | G10: Eisen | N10: Initiële termijn | Q10: Scorebepaling | AB10: Naam BO-document | AC10: =CONCATENATE("BO",J1) -> BO0
B11: Opdrachtnemer | C11: Contactpersoon | D11: Kandidaat | E11: Doorleen kandidaat | F11: Status kandidaat | G11: Opdracht- nemer | H11: Behoefte- steller | I11: Voorwaar- delijke inschrijving | J11: Strijdig- heden in toelichting | K11: > 1x aangeboden ¢uitsluiting | M11: Eisen akkoord | N11: Tarief aanbieding | O11: =SMALL(O12:O51,1) ->  | P11: Score | Q11: Score beoordelaar | R11: Totaal score | S11: Rang | AB11: Initieel tarief
A12: 1 | L12: =CONCATENATE(G12,H12,I12,J12,K12) ->  | M12: =IF(L12="JaJaNeeNeeNee","Ja",IF(L12="","","Nee")) ->  | O12: =IF(N12>0,IF(M12="Ja",N12,"999")) -> FALSE | P12: =IF(M12="Ja",IF(N12>0,AB12*$U$5,0),0) -> 0 | R12: =IF(M12="Ja",P12+Q12,0) -> 0 | S12: =IF($T$1="Gunnen",IF(R12>0,RANK(R12,$R$12:$R$51,0),IF(M12="Nee","Exit","")),"") ->  | AB12: =IF(N12>0,IF(N12<999,$O$11/N12,)) -> FALSE | AE12: E-mailgegevens afwijsreden | AG12: =IF(B12<>"",VLOOKUP(B12,'Brongegevens dienst'!$S$3:$Y$14,7,),"") ->  | AH12: =TEXT(R12,"###,00") -> ,00 | AI12: E-mailgegevens gunning
A13: 2 | L13: =CONCATENATE(G13,H13,I13,J13,K13) ->  | M13: =IF(L13="JaJaNeeNeeNee","Ja",IF(L13="","","Nee")) ->  | O13: =IF(N13>0,IF(M13="Ja",N13,"999")) -> FALSE | P13: 0 | R13: =IF(M13="Ja",P13+Q13,0) -> 0 | AB13: FALSE | AG13: =IF(B13<>"",VLOOKUP(B13,'Brongegevens dienst'!$S$3:$Y$14,7,),"") ->  | AH13: =TEXT(R13,"###,00") -> ,00
A14: 3 | O14: FALSE | P14: 0 | R14: 0 | AB14: FALSE | AG14: =IF(B14<>"",VLOOKUP(B14,'Brongegevens dienst'!$S$3:$Y$14,7,),"") ->  | AH14: ,00
A15: 4 | O15: FALSE | P15: 0 | R15: 0 | AB15: FALSE | AE15: Van | AF15: ='Brongegevens dienst'!B20 -> iuc-inhuur@iuc-noord.nl | AG15: =IF(B15<>"",VLOOKUP(B15,'Brongegevens dienst'!$S$3:$Y$14,7,),"") ->  | AH15: ,00 | AI15: Van | AJ15: ='Brongegevens dienst'!B20 -> iuc-inhuur@iuc-noord.nl
A16: 5 | O16: FALSE | P16: 0 | R16: 0 | AB16: FALSE | AE16: CC | AF16: ='Brongegevens dienst'!B20 -> iuc-inhuur@iuc-noord.nl | AG16: =IF(B16<>"",VLOOKUP(B16,'Brongegevens dienst'!$S$3:$Y$14,7,),"") ->  | AH16: ,00 | AI16: CC | AJ16: ='Brongegevens dienst'!B20 -> iuc-inhuur@iuc-noord.nl
A17: 6 | O17: FALSE | P17: 0 | R17: 0 | AB17: FALSE | AE17: Onderwerp | AF17: Afwijzing kandidaat ICT functie aanvraag: | AG17: =IF(B17<>"",VLOOKUP(B17,'Brongegevens dienst'!$S$3:$Y$14,7,),"") ->  | AH17: ,00 | AI17: Onderwerp | AJ17: Gunning kandidaat ICT functie aanvraag:
A18: 7 | O18: FALSE | P18: 0 | R18: 0 | AB18: FALSE | AE18: Aanhef | AF18: Beste | AG18: =IF(B18<>"",VLOOKUP(B18,'Brongegevens dienst'!$S$3:$Y$14,7,),"") ->  | AH18: ,00 | AI18: Aanhef | AJ18: Beste
A19: 8 | O19: FALSE | P19: 0 | R19: 0 | AB19: FALSE | AE19: Inleiding | AF19: Dank u voor uw aanbieding op de in het onderwerp genoemde aanvraag. Hierbij kan ik melden dat uw kandidaat niet als economisch meest voordelige inschrijving wordt aangemerkt. Hieronder vindt u de naam van de afgewezen kandidaat, de rang, en de motivatie voor de afwijzing. | AG19: =IF(B19<>"",VLOOKUP(B19,'Brongegevens dienst'!$S$3:$Y$14,7,),"") ->  | AH19: ,00 | AI19: Inleiding | AJ19: Dank u voor uw aanbieding op de in het onderwerp genoemde aanvraag. Gefeliciteerd! Hierbij deel ik u mede dat de opdracht met de hieronder genoemde kandidaat aan u is gegund. Uw kandidaat heeft een score van
A20: 9 | O20: FALSE | P20: 0 | R20: 0 | AB20: FALSE | AE20: Kandidaat | AF20: Kandidaatnaam: | AG20: =IF(B20<>"",VLOOKUP(B20,'Brongegevens dienst'!$S$3:$Y$14,7,),"") ->  | AH20: ,00 | AI20: Kandidaat | AJ20: Kandidaatnaam :
A21: 10 | O21: FALSE | P21: 0 | R21: 0 | AB21: FALSE | AE21: Rang | AF21: Rang: | AG21: =IF(B21<>"",VLOOKUP(B21,'Brongegevens dienst'!$S$3:$Y$14,7,),"") ->  | AH21: ,00 | AI21: Startdatum | AJ21: Startdatum :
A22: 11 | O22: FALSE | P22: 0 | R22: 0 | AB22: FALSE | AE22: Reden | AF22: Afwijsreden: | AG22: =IF(B22<>"",VLOOKUP(B22,'Brongegevens dienst'!$S$3:$Y$14,7,),"") ->  | AH22: ,00 | AI22: Startdatum | AJ22: =U8 -> 00:00:00
A23: 12 | O23: FALSE | P23: 0 | R23: 0 | AB23: FALSE | AE23: Gegunde partij | AF23: De gegunde opdrachtnemer(s) voor deze aanvraag is/zijn: | AG23: =IF(B23<>"",VLOOKUP(B23,'Brongegevens dienst'!$S$3:$Y$14,7,),"") ->  | AH23: ,00 | AI23: Reden : | AJ23: Motivatie gunning :
A24: 13 | O24: FALSE | P24: 0 | R24: 0 | AB24: FALSE | AE24: Afsluiting | AF24: Wij gaan er van uit u hiermee voldoende te hebben geïnformeerd. Met vriendelijke groet, | AG24: =IF(B24<>"",VLOOKUP(B24,'Brongegevens dienst'!$S$3:$Y$14,7,),"") ->  | AH24: ,00 | AI24: Afsluiting | AJ24: De overeenkomst ziet u z.s.m. tegemoet. Wij gaan er vanuit u hiermee voldoende te hebben geïnformeerd. Met vriendelijke groet,
A25: 14 | O25: FALSE | P25: 0 | R25: 0 | AB25: FALSE | AD25: Rang 1 | AE25: =IF(J1<>"",INDEX(B12:B51,MATCH(1,S12:S51,0)),"") ->  | AF25: =IF(J1<>"",INDEX(R12:R51,MATCH(1,S12:S51,0)),"") ->  | AG25: =IF(B25<>"",VLOOKUP(B25,'Brongegevens dienst'!$S$3:$Y$14,7,),"") ->  | AH25: ,00 | AI25: Inkoper tekst | AJ25: Inkoper aanvraag :
A26: 15 | O26: FALSE | P26: 0 | R26: 0 | AB26: FALSE | AF26: =TEXT(AF25,"###,00") ->  | AG26: =IF(B26<>"",VLOOKUP(B26,'Brongegevens dienst'!$S$3:$Y$14,7,),"") ->  | AH26: ,00 | AI26: Inkoper | AJ26: =Inhuurformulier!C44 -> 0
A27: 16 | O27: FALSE | P27: 0 | R27: 0 | AB27: FALSE | AE27: Inleiding bij geen gunning | AF27: Dank u voor uw aanbieding op de in het onderwerp genoemde aanvraag. Op basis van de uitkomsten van de beoordeling is de opdracht niet gegund. Ik deel u hierbij mede dat uw bedrijf niet voor gunning in aanmerking komt. Hieronder vindt u de naam van de afgewezen kandidaat, het aantal behaalde punten en de motivatie voor de afwijzing. | AG27: =IF(B27<>"",VLOOKUP(B27,'Brongegevens dienst'!$S$3:$Y$14,7,),"") ->  | AH27: ,00
A28: 17 | O28: FALSE | P28: 0 | R28: 0 | AB28: FALSE | AE28: Afsluting bij geen gunning | AF28: Via deze weg dank ik u voor de in deze verrichte inspanningen en de uitgebrachte offerte. Wij gaan er van uit u hiermee voldoende te hebben geïnformeerd. Met vriendelijke groet, De Minister van Economische Zaken en Klimaat, namens deze: Mevrouw M. Jacobs Teammanager Inkoop Uitvoering Centrum EZK, ................................................................................. Ministerie van Economische Zaken en Klimaat Inkoop Uitvoering Centrum EZK Mandemaat 3 | 9405 TG | Assen | Kamer 3.060 Postbus 322 | 9400 AH | Assen ................................................................................. Accountteam11@rvo.nl www.rvo.nl | AG28: =IF(B28<>"",VLOOKUP(B28,'Brongegevens dienst'!$S$3:$Y$14,7,),"") ->  | AH28: ,00 | AI28: E-mailgegevens bevestiging
A29: 18 | O29: FALSE | P29: 0 | R29: 0 | AB29: FALSE | AE29: Tekst Punten bij geen gunning | AF29: Punten: | AG29: =IF(B29<>"",VLOOKUP(B29,'Brongegevens dienst'!$S$3:$Y$14,7,),"") ->  | AH29: ,00 | AI29: Onderwerp | AJ29: Bevestiging gunning
A30: 19 | L30: =CONCATENATE(G30,H30,I30,J30,K30) ->  | M30: =IF(L30="JaJaNeeNeeNee","Ja",IF(L30="","","Nee")) ->  | O30: =IF(N30>0,IF(M30="Ja",N30,"999")) -> FALSE | P30: =IF(M30="Ja",IF(N30>0,AB30*$U$5,0),0) -> 0 | R30: =IF(M30="Ja",P30+Q30,0) -> 0 | AB30: FALSE | AD30: Rang 2 | AE30: =IF(U9>1,IF(J1<>"",INDEX(B12:B51,MATCH(2,S12:S51,0)),""),"") ->  | AF30: =IF(U9>1,IF(J1<>"",INDEX(R12:R51,MATCH(2,S12:S51,0)),""),"") ->  | AG30: =IF(B30<>"",VLOOKUP(B30,'Brongegevens dienst'!$S$3:$Y$14,7,),"") ->  | AH30: ,00 | AI30: Aanhef | AJ30: Beste
A31: 20 | O31: FALSE | P31: 0 | R31: 0 | AB31: FALSE | AF31: =IF(U9>1,TEXT(AF30,"###,00"),"") ->  | AG31: =IF(B31<>"",VLOOKUP(B31,'Brongegevens dienst'!$S$3:$Y$14,7,),"") ->  | AH31: ,00 | AI31: Inleiding | AJ31: Bedankt voor de beoordeling. Hierbij de bevestiging dat de opdracht is gegund. De gekozen kandidaat,
A32: 21 | L32: =CONCATENATE(G32,H32,I32,J32,K32) ->  | M32: =IF(L32="JaJaNeeNeeNee","Ja",IF(L32="","","Nee")) ->  | O32: =IF(N32>0,IF(M32="Ja",N32,"999")) -> FALSE | P32: =IF(M32="Ja",IF(N32>0,AB32*$U$5,0),0) -> 0 | R32: =IF(M32="Ja",P32+Q32,0) -> 0 | AB32: FALSE | AD32: Rang 3 | AE32: =IF(U9=3,IF(J1<>"",INDEX(B12:B51,MATCH(3,S12:S51,0)),""),"") ->  | AF32: =IF(U9=3,IF(J1<>"",INDEX(R12:R51,MATCH(3,S12:S51,0)),""),"") ->  | AG32: =IF(B32<>"",VLOOKUP(B32,'Brongegevens dienst'!$S$3:$Y$14,7,),"") ->  | AH32: ,00 | AI32: Afsluiting | AJ32: Graag wijzen we erop dat de kandidaat pas mag starten nadat er een geldige VOG (niet ouder dan 6 maanden op de startdatum van de werkzaamheden) en een door de kandidaat getekende Model Integriteitsverklaring Rijk voor externen is ontvangen door ??? Inhuur. Stem de exacte startdatum van deze kandidaat daarom dus altijd eerst af met ??? Inhuur. De nadere overeenkomst wordt zo spoedig mogelijk opgesteld. Met vriendelijke groet,
A33: 22 | O33: FALSE | P33: 0 | R33: 0 | AB33: FALSE | AF33: =IF(U9=3,TEXT(AF32,"###,00"),"") ->  | AG33: =IF(B33<>"",VLOOKUP(B33,'Brongegevens dienst'!$S$3:$Y$14,7,),"") ->  | AH33: ,00
A34: 23 | O34: FALSE | P34: 0 | R34: 0 | AB34: FALSE | AD34: Rang 2 tekst | AE34: =IF(U9>1," met ","") ->  | AF34: =IF(U9>1," punten.","") ->  | AG34: =IF(B34<>"",VLOOKUP(B34,'Brongegevens dienst'!$S$3:$Y$14,7,),"") ->  | AH34: ,00
A35: 24 | O35: FALSE | P35: 0 | R35: 0 | AB35: FALSE | AD35: Rang 3 tekst | AE35: =IF(U9=3," met ","") ->  | AF35: =IF(U9=3," punten.","") ->  | AG35: =IF(B35<>"",VLOOKUP(B35,'Brongegevens dienst'!$S$3:$Y$14,7,),"") ->  | AH35: ,00
A36: 25 | L36: =CONCATENATE(G36,H36,I36,J36,K36) ->  | M36: =IF(L36="JaJaNeeNeeNee","Ja",IF(L36="","","Nee")) ->  | O36: =IF(N36>0,IF(M36="Ja",N36,"999")) -> FALSE | P36: =IF(M36="Ja",IF(N36>0,AB36*$U$5,0),0) -> 0 | R36: =IF(M36="Ja",P36+Q36,0) -> 0 | AB36: FALSE | AG36: =IF(B36<>"",VLOOKUP(B36,'Brongegevens dienst'!$S$3:$Y$14,7,),"") ->  | AH36: ,00
A37: 26 | L37: =CONCATENATE(G37,H37,I37,J37,K37) ->  | M37: =IF(L37="JaJaNeeNeeNee","Ja",IF(L37="","","Nee")) ->  | O37: =IF(N37>0,IF(M37="Ja",N37,"999")) -> FALSE | P37: =IF(M37="Ja",IF(N37>0,AB37*$U$5,0),0) -> 0 | R37: =IF(M37="Ja",P37+Q37,0) -> 0 | AB37: FALSE | AG37: =IF(B37<>"",VLOOKUP(B37,'Brongegevens dienst'!$S$3:$Y$14,7,),"") ->  | AH37: ,00
A38: 27 | O38: FALSE | P38: 0 | R38: 0 | AB38: FALSE | AG38: =IF(B38<>"",VLOOKUP(B38,'Brongegevens dienst'!$S$3:$Y$14,7,),"") ->  | AH38: ,00
A39: 28 | O39: FALSE | P39: 0 | R39: 0 | AB39: FALSE | AG39: =IF(B39<>"",VLOOKUP(B39,'Brongegevens dienst'!$S$3:$Y$14,7,),"") ->  | AH39: ,00
A40: 29 | O40: FALSE | P40: 0 | R40: 0 | AB40: FALSE | AG40: =IF(B40<>"",VLOOKUP(B40,'Brongegevens dienst'!$S$3:$Y$14,7,),"") ->  | AH40: ,00
A41: 30 | O41: FALSE | P41: 0 | R41: 0 | AB41: FALSE | AG41: =IF(B41<>"",VLOOKUP(B41,'Brongegevens dienst'!$S$3:$Y$14,7,),"") ->  | AH41: ,00
A42: 31 | O42: FALSE | P42: 0 | R42: 0 | AB42: FALSE | AG42: =IF(B42<>"",VLOOKUP(B42,'Brongegevens dienst'!$S$3:$Y$14,7,),"") ->  | AH42: ,00
A43: 32 | O43: FALSE | P43: 0 | R43: 0 | AB43: FALSE | AG43: =IF(B43<>"",VLOOKUP(B43,'Brongegevens dienst'!$S$3:$Y$14,7,),"") ->  | AH43: ,00
A44: 33 | O44: FALSE | P44: 0 | R44: 0 | AB44: FALSE | AG44: =IF(B44<>"",VLOOKUP(B44,'Brongegevens dienst'!$S$3:$Y$14,7,),"") ->  | AH44: ,00
A45: 34 | O45: FALSE | P45: 0 | R45: 0 | AB45: FALSE | AG45: =IF(B45<>"",VLOOKUP(B45,'Brongegevens dienst'!$S$3:$Y$14,7,),"") ->  | AH45: ,00
A46: 35 | O46: FALSE | P46: 0 | R46: 0 | AB46: FALSE | AG46: =IF(B46<>"",VLOOKUP(B46,'Brongegevens dienst'!$S$3:$Y$14,7,),"") ->  | AH46: ,00
A47: 36 | P47: 0 | R47: 0
A48: 37 | P48: 0 | R48: 0
A49: 38 | P49: 0 | R49: 0
A50: 39 | P50: 0 | R50: 0
A51: 40 | O51: FALSE | P51: 0 | R51: =IF(M51="Ja",P51+Q51,0) -> 0 | AB51: FALSE | AG51: =IF(B51<>"",VLOOKUP(B51,'Brongegevens dienst'!$S$3:$Y$14,7,),"") ->  | AH51: =TEXT(R51,"###,00") -> ,00

Sheet Offerteformulier (hidden)
A1: Offerteformulier ICT Inhuur | C1: Referentienummer | E1: =Inhuurformulier!D1 -> 0 | K1: Lijst
A2: =Inhuurformulier!B57 -> 0 | K2: Ja
A3: Witte velden invullen en document samen met een CV van de kandidaat opsturen naar : | K3: Nee
E4: =Inhuurformulier!D13 -> iuc-inhuur@iuc-noord.nl
A6: Sluitingsmoment indienen van offertes : | E6: =Inhuurformulier!C38 -> 2025-11-07 | F6: =Inhuurformulier!D38 -> 45964.69369
A8: Velden met een * zijn verplicht in te vullen.
C10: AANVRAAGGEGEVENS
A12: Inhurende organisatie
B13: Ministerie | C13: =Inhuurformulier!B17 -> OCW
B14: Deelnemer | C14: =Inhuurformulier!B18 -> AWTI
B15: Dienstonderdeel | C15: =Inhuurformulier!B19 -> 0
A17: Functie in kwaliteitsraamwerk I(v)
B18: Kwaliteitenprofiel | C18: =Inhuurformulier!B50 -> 1.1.3 APPLICATIEARCHITECTUUR
B19: Functiefamilie | C19: =Inhuurformulier!B51 -> Uitvoering
B20: Functiegroep | C20: =Inhuurformulier!B52 -> Expert IV
A22: Functienaam (roepnaam) | C22: =Inhuurformulier!B57 -> 0
A24: Zie bijbehorende formulier "Aanvraag Inhuur ICT" (zelfde referentienummer) voor uitgebreide informatie betreffende de aanvraag.
C26: NO BID
A28: Aanbieding | B28: Aanbieding*
B30: Toelichting bij "No-Bid"
C32: AANBIEDING ALGEMEEN
A34: Opdrachtnemer | B34: Naam*
B36: Contactpersoon*
B38: - Telefoonnummer*
B40: - E-mail*
A42: Kandidaat | B42: Naam*
B44: Postcode/Woonplaats*
B46: Geplande vakanties binnen 3 maanden*
A48: Social Return | B48: Kandidaat uit doelgroep social return*
A50: Keten | B50: Beschrijving* Beschrijf de volledige keten hoe de kandidaat wordt ingehuurd. Denk hierbij ook aan : - alle tussenpartijen in de keten - waar kandidaat in loondienst is - ZZP-er of DGA - Etc.
B52: ZZP/DGA* | E52: Doorleen*
C54: EISEN BIJ DEZE AANVRAAG
H55: Voldoet aan eis*
B56: Professionele Kennisgebieden | C56: Opleiding, Certificaten, Kennisniveau
A57: Dominant Kwaliteitenprofiel* | B57: =IF(Inhuurformulier!B61<>"",Inhuurformulier!B61," ") ->  | C57: =IF(Inhuurformulier!C61<>"",Inhuurformulier!C61," ") -> 
B58: =IF(Inhuurformulier!B62<>"",Inhuurformulier!B62," ") ->  | C58: =IF(Inhuurformulier!C62<>"",Inhuurformulier!C62," ") -> 
B59: =IF(Inhuurformulier!B63<>"",Inhuurformulier!B63," ") ->  | C59: =IF(Inhuurformulier!C63<>"",Inhuurformulier!C63," ") -> 
B61: Kwaliteitenprofielen | C61: Opleiding, Certificaten, Kennisniveau
A62: Overige vereiste kennisgebieden uit kwaliteits-raamwerk I(v) | B62: =IF(Inhuurformulier!B66<>"",Inhuurformulier!B66," ") ->  | C62: =IF(Inhuurformulier!C66<>"",Inhuurformulier!C66," ") -> 
B63: =IF(Inhuurformulier!B67<>"",Inhuurformulier!B67," ") ->  | C63: =IF(Inhuurformulier!C67<>"",Inhuurformulier!C67," ") -> 
B64: =IF(Inhuurformulier!B68<>"",Inhuurformulier!B68," ") ->  | C64: =IF(Inhuurformulier!C68<>"",Inhuurformulier!C68," ") -> 
B66: Werk- en denkniveau (algemeen en specifiek) | G66: Bewezen aantal jaar
A67: Ervaring | B67: =IF(Inhuurformulier!B71<>"",Inhuurformulier!B71," ") ->  | G67: =IF(Inhuurformulier!H71<>"",Inhuurformulier!H71," ") -> 
B68: =IF(Inhuurformulier!B72<>"",Inhuurformulier!B72," ") ->  | G68: =IF(Inhuurformulier!H72<>"",Inhuurformulier!H72," ") -> 
B69: =IF(Inhuurformulier!B73<>"",Inhuurformulier!B73," ") ->  | G69: =IF(Inhuurformulier!H73<>"",Inhuurformulier!H73," ") -> 
C72: TARIEVEN EN KORTINGEN
C74: Aanbiedingstarief
B75: Tarief excl. BTW*
B77: Verlengd tarief (indien van toepassing)
C79: ONDERTEKENING OFFERTE
B81: Handtekening gemandateerde | F81: 1. Druk op de rechtermuisknop 2. Kies "Ondertekenen" 3. Vul naam of voeg een afbeelding in 4. Klik op Ondertekenen 5. Bevestig met "OK"
C83: TOELICHTING AANGEBODEN KANDIDAAT
A85: Schrijf een toelichting over de aangeboden kandidaat*

Sheet Beoordelingsformulier (hidden)
A1: Beoordelen aangeboden kandidaten | E1: Referentienummer | F1: =Inhuurformulier!D1 -> 0
A2: =Inhuurformulier!B57 -> 0
A3: AANVRAAGGEGEVENS
A5: Departement | C5: =Inhuurformulier!B17 -> OCW | E5: Volledig invullen en opsturen naar:
A6: Deelnemer | C6: =Inhuurformulier!B18 -> AWTI | F6: =Inhuurformulier!D13 -> iuc-inhuur@iuc-noord.nl
A7: Dienstsonderdeel | C7: =Inhuurformulier!B19 -> 0
A9: AANGEBODEN KANDIDATEN
B10: Geef per aangeboden kandidaat aan of deze voldoet aan de gestelde minimum eisen in de aanvraag. Geef vervolgens per gunningscriterium waarop beoordeeld moet worden aan wat de score is. Deze kan nooit meer zijn dan de waarde bij het gunningscriterium zoals opgegeven in de aanvraag. Let op! Als invoerveld rood kleurt, dan is de ingevoerde waarde niet akkoord of is totaal score > maximale score. | I10: Scores Gunningscriteria bij deze aanvraag. Indien "Voldoet aan functie gebonden eisen" bij kandidaat is "Nee" geen punten toekennen, maar wel een toelichting over de ontbrekende eis(en) geven. | P10: Maximale score | Q10: Toelichting beoordeling - Voor elke afgewezen kandidaat verwachten wij een degelijke reden van afwijzing en de daarbij behorende scores. - Voor de gekozen kandidaat graag ook een gedegen onderbouwing waarom u deze kandidaat heeft gekozen. Houdt er s.v.p. bij het formuleren van de motivatie/aanbeveling rekening mee, dat deze toelichting één op één doorgestuurd wordt naar de opdrachtnemer. Rijhoogte kan handmatig worden aangepast.
I11: =Inhuurformulier!C96 -> 0 | J11: =Inhuurformulier!C97 -> 0 | K11: =Inhuurformulier!C98 -> 0 | L11: =Inhuurformulier!C99 -> 0 | M11: =Inhuurformulier!C100 -> 0 | N11: =Inhuurformulier!C101 -> 0 | O11: =Inhuurformulier!C102 -> 0 | P11: =SUM(I11:O11) -> 0
I12: 2. Duurzaamheidsaspecten en social return doelgroep bij inzet van de Kandidaat | J12: 3. Relevante werkervaring van de Kandidaat | K12: 4. Kennis en vaardigheden van de Kandidaat | L12: 5. Beschikbaarheid Kandidaat | M12: 6. Mate waarin de Kandidaat de opdracht begrijpt | N12: 7. Kandidaat past bij organisatie | O12: 8. Plan van aanpak uitvoering opdracht
B13: Opdrachtnemer | C13: Contactpersoon | D13: Kandidaat | E13: Controle kandidaat door inhuurdesk | F13: Voldoet aan functie gebonden eisen | G13: ZZP | H13: Tarief | P13: Totaal score
A14: 1 | B14: ='Overzicht inhuurdesk'!B12 -> 0 | C14: ='Overzicht inhuurdesk'!C12 -> 0 | D14: ='Overzicht inhuurdesk'!D12 -> 0 | E14: =IF(B14>" ",IF('Overzicht inhuurdesk'!I12="Ja","Voorwaardelijke inschrijving",IF('Overzicht inhuurdesk'!J12="JA","Strijdigheden vastgesteld",IF('Overzicht inhuurdesk'!K12="Ja","Meer dan 1x aangeboden",IF('Overzicht inhuurdesk'!G12="Nee","Voldoet niet aan eisen volgens opdrachtnemer","OK"))))," ") ->  | H14: =IF('Overzicht inhuurdesk'!$B12<>"",'Overzicht inhuurdesk'!N12,"") ->  | P14: =IF('Overzicht inhuurdesk'!$B12>"",SUM(I14:O14),"") ->  | S14: Keuze
A15: 2 | B15: ='Overzicht inhuurdesk'!B13 -> 0 | C15: ='Overzicht inhuurdesk'!C13 -> 0 | D15: ='Overzicht inhuurdesk'!D13 -> 0 | E15: =IF(B15>" ",IF('Overzicht inhuurdesk'!I13="Ja","Voorwaardelijke inschrijving",IF('Overzicht inhuurdesk'!J13="JA","Strijdigheden vastgesteld",IF('Overzicht inhuurdesk'!K13="Ja","Meer dan 1x aangeboden",IF('Overzicht inhuurdesk'!G13="Nee","Voldoet niet aan eisen volgens opdrachtnemer","OK"))))," ") ->  | H15: =IF('Overzicht inhuurdesk'!$B13<>"",'Overzicht inhuurdesk'!N13,"") ->  | P15: =IF('Overzicht inhuurdesk'!$B13>"",SUM(I15:O15),"") ->  | S15: Ja
A16: 3 | B16: ='Overzicht inhuurdesk'!B14 -> 0 | C16: ='Overzicht inhuurdesk'!C14 -> 0 | D16: ='Overzicht inhuurdesk'!D14 -> 0 | E16: =IF(B16>" ",IF('Overzicht inhuurdesk'!I14="Ja","Voorwaardelijke inschrijving",IF('Overzicht inhuurdesk'!J14="JA","Strijdigheden vastgesteld",IF('Overzicht inhuurdesk'!K14="Ja","Meer dan 1x aangeboden",IF('Overzicht inhuurdesk'!G14="Nee","Voldoet niet aan eisen volgens opdrachtnemer","OK"))))," ") ->  | H16: =IF('Overzicht inhuurdesk'!$B14<>"",'Overzicht inhuurdesk'!N14,"") ->  | P16: =IF('Overzicht inhuurdesk'!$B14>"",SUM(I16:O16),"") ->  | S16: Nee
A17: 4 | B17: ='Overzicht inhuurdesk'!B15 -> 0 | C17: ='Overzicht inhuurdesk'!C15 -> 0 | D17: ='Overzicht inhuurdesk'!D15 -> 0 | E17: =IF(B17>" ",IF('Overzicht inhuurdesk'!I15="Ja","Voorwaardelijke inschrijving",IF('Overzicht inhuurdesk'!J15="JA","Strijdigheden vastgesteld",IF('Overzicht inhuurdesk'!K15="Ja","Meer dan 1x aangeboden",IF('Overzicht inhuurdesk'!G15="Nee","Voldoet niet aan eisen volgens opdrachtnemer","OK"))))," ") ->  | H17: =IF('Overzicht inhuurdesk'!$B15<>"",'Overzicht inhuurdesk'!N15,"") ->  | P17: =IF('Overzicht inhuurdesk'!$B15>"",SUM(I17:O17),"") -> 
A18: 5 | B18: ='Overzicht inhuurdesk'!B16 -> 0 | C18: ='Overzicht inhuurdesk'!C16 -> 0 | D18: ='Overzicht inhuurdesk'!D16 -> 0 | E18: =IF(B18>" ",IF('Overzicht inhuurdesk'!I16="Ja","Voorwaardelijke inschrijving",IF('Overzicht inhuurdesk'!J16="JA","Strijdigheden vastgesteld",IF('Overzicht inhuurdesk'!K16="Ja","Meer dan 1x aangeboden",IF('Overzicht inhuurdesk'!G16="Nee","Voldoet niet aan eisen volgens opdrachtnemer","OK"))))," ") ->  | H18: =IF('Overzicht inhuurdesk'!$B16<>"",'Overzicht inhuurdesk'!N16,"") ->  | P18: =IF('Overzicht inhuurdesk'!$B16>"",SUM(I18:O18),"") -> 
A19: 6 | B19: ='Overzicht inhuurdesk'!B17 -> 0 | C19: ='Overzicht inhuurdesk'!C17 -> 0 | D19: ='Overzicht inhuurdesk'!D17 -> 0 | E19: =IF(B19>" ",IF('Overzicht inhuurdesk'!I17="Ja","Voorwaardelijke inschrijving",IF('Overzicht inhuurdesk'!J17="JA","Strijdigheden vastgesteld",IF('Overzicht inhuurdesk'!K17="Ja","Meer dan 1x aangeboden",IF('Overzicht inhuurdesk'!G17="Nee","Voldoet niet aan eisen volgens opdrachtnemer","OK"))))," ") ->  | H19: =IF('Overzicht inhuurdesk'!$B17<>"",'Overzicht inhuurdesk'!N17,"") ->  | P19: =IF('Overzicht inhuurdesk'!$B17>"",SUM(I19:O19),"") -> 
A20: 7 | B20: ='Overzicht inhuurdesk'!B18 -> 0 | C20: ='Overzicht inhuurdesk'!C18 -> 0 | D20: ='Overzicht inhuurdesk'!D18 -> 0 | E20: =IF(B20>" ",IF('Overzicht inhuurdesk'!I18="Ja","Voorwaardelijke inschrijving",IF('Overzicht inhuurdesk'!J18="JA","Strijdigheden vastgesteld",IF('Overzicht inhuurdesk'!K18="Ja","Meer dan 1x aangeboden",IF('Overzicht inhuurdesk'!G18="Nee","Voldoet niet aan eisen volgens opdrachtnemer","OK"))))," ") ->  | H20: =IF('Overzicht inhuurdesk'!$B18<>"",'Overzicht inhuurdesk'!N18,"") ->  | P20: =IF('Overzicht inhuurdesk'!$B18>"",SUM(I20:O20),"") -> 
A21: 8 | B21: ='Overzicht inhuurdesk'!B19 -> 0 | C21: ='Overzicht inhuurdesk'!C19 -> 0 | D21: ='Overzicht inhuurdesk'!D19 -> 0 | E21: =IF(B21>" ",IF('Overzicht inhuurdesk'!I19="Ja","Voorwaardelijke inschrijving",IF('Overzicht inhuurdesk'!J19="JA","Strijdigheden vastgesteld",IF('Overzicht inhuurdesk'!K19="Ja","Meer dan 1x aangeboden",IF('Overzicht inhuurdesk'!G19="Nee","Voldoet niet aan eisen volgens opdrachtnemer","OK"))))," ") ->  | H21: =IF('Overzicht inhuurdesk'!$B19<>"",'Overzicht inhuurdesk'!N19,"") ->  | P21: =IF('Overzicht inhuurdesk'!$B19>"",SUM(I21:O21),"") -> 
A22: 9 | B22: ='Overzicht inhuurdesk'!B20 -> 0 | C22: ='Overzicht inhuurdesk'!C20 -> 0 | D22: ='Overzicht inhuurdesk'!D20 -> 0 | E22: =IF(B22>" ",IF('Overzicht inhuurdesk'!I20="Ja","Voorwaardelijke inschrijving",IF('Overzicht inhuurdesk'!J20="JA","Strijdigheden vastgesteld",IF('Overzicht inhuurdesk'!K20="Ja","Meer dan 1x aangeboden",IF('Overzicht inhuurdesk'!G20="Nee","Voldoet niet aan eisen volgens opdrachtnemer","OK"))))," ") ->  | H22: =IF('Overzicht inhuurdesk'!$B20<>"",'Overzicht inhuurdesk'!N20,"") ->  | P22: =IF('Overzicht inhuurdesk'!$B20>"",SUM(I22:O22),"") -> 
A23: 10 | B23: ='Overzicht inhuurdesk'!B21 -> 0 | C23: ='Overzicht inhuurdesk'!C21 -> 0 | D23: ='Overzicht inhuurdesk'!D21 -> 0 | E23: =IF(B23>" ",IF('Overzicht inhuurdesk'!I21="Ja","Voorwaardelijke inschrijving",IF('Overzicht inhuurdesk'!J21="JA","Strijdigheden vastgesteld",IF('Overzicht inhuurdesk'!K21="Ja","Meer dan 1x aangeboden",IF('Overzicht inhuurdesk'!G21="Nee","Voldoet niet aan eisen volgens opdrachtnemer","OK"))))," ") ->  | H23: =IF('Overzicht inhuurdesk'!$B21<>"",'Overzicht inhuurdesk'!N21,"") ->  | P23: =IF('Overzicht inhuurdesk'!$B21>"",SUM(I23:O23),"") -> 
A24: 11 | B24: ='Overzicht inhuurdesk'!B22 -> 0 | C24: ='Overzicht inhuurdesk'!C22 -> 0 | D24: ='Overzicht inhuurdesk'!D22 -> 0 | E24: =IF(B24>" ",IF('Overzicht inhuurdesk'!I22="Ja","Voorwaardelijke inschrijving",IF('Overzicht inhuurdesk'!J22="JA","Strijdigheden vastgesteld",IF('Overzicht inhuurdesk'!K22="Ja","Meer dan 1x aangeboden",IF('Overzicht inhuurdesk'!G22="Nee","Voldoet niet aan eisen volgens opdrachtnemer","OK"))))," ") ->  | H24: =IF('Overzicht inhuurdesk'!$B22<>"",'Overzicht inhuurdesk'!N22,"") ->  | P24: =IF('Overzicht inhuurdesk'!$B22>"",SUM(I24:O24),"") -> 
A25: 12 | B25: ='Overzicht inhuurdesk'!B23 -> 0 | C25: ='Overzicht inhuurdesk'!C23 -> 0 | D25: ='Overzicht inhuurdesk'!D23 -> 0 | E25: =IF(B25>" ",IF('Overzicht inhuurdesk'!I23="Ja","Voorwaardelijke inschrijving",IF('Overzicht inhuurdesk'!J23="JA","Strijdigheden vastgesteld",IF('Overzicht inhuurdesk'!K23="Ja","Meer dan 1x aangeboden",IF('Overzicht inhuurdesk'!G23="Nee","Voldoet niet aan eisen volgens opdrachtnemer","OK"))))," ") ->  | H25: =IF('Overzicht inhuurdesk'!$B23<>"",'Overzicht inhuurdesk'!N23,"") ->  | P25: =IF('Overzicht inhuurdesk'!$B23>"",SUM(I25:O25),"") -> 
A26: 13 | B26: ='Overzicht inhuurdesk'!B24 -> 0 | C26: ='Overzicht inhuurdesk'!C24 -> 0 | D26: ='Overzicht inhuurdesk'!D24 -> 0 | E26: =IF(B26>" ",IF('Overzicht inhuurdesk'!I24="Ja","Voorwaardelijke inschrijving",IF('Overzicht inhuurdesk'!J24="JA","Strijdigheden vastgesteld",IF('Overzicht inhuurdesk'!K24="Ja","Meer dan 1x aangeboden",IF('Overzicht inhuurdesk'!G24="Nee","Voldoet niet aan eisen volgens opdrachtnemer","OK"))))," ") ->  | H26: =IF('Overzicht inhuurdesk'!$B24<>"",'Overzicht inhuurdesk'!N24,"") ->  | P26: =IF('Overzicht inhuurdesk'!$B24>"",SUM(I26:O26),"") -> 
A27: 14 | B27: ='Overzicht inhuurdesk'!B25 -> 0 | C27: ='Overzicht inhuurdesk'!C25 -> 0 | D27: ='Overzicht inhuurdesk'!D25 -> 0 | E27: =IF(B27>" ",IF('Overzicht inhuurdesk'!I25="Ja","Voorwaardelijke inschrijving",IF('Overzicht inhuurdesk'!J25="JA","Strijdigheden vastgesteld",IF('Overzicht inhuurdesk'!K25="Ja","Meer dan 1x aangeboden",IF('Overzicht inhuurdesk'!G25="Nee","Voldoet niet aan eisen volgens opdrachtnemer","OK"))))," ") ->  | H27: =IF('Overzicht inhuurdesk'!$B25<>"",'Overzicht inhuurdesk'!N25,"") ->  | P27: =IF('Overzicht inhuurdesk'!$B25>"",SUM(I27:O27),"") -> 
A28: 15 | B28: ='Overzicht inhuurdesk'!B26 -> 0 | C28: ='Overzicht inhuurdesk'!C26 -> 0 | D28: ='Overzicht inhuurdesk'!D26 -> 0 | E28: =IF(B28>" ",IF('Overzicht inhuurdesk'!I26="Ja","Voorwaardelijke inschrijving",IF('Overzicht inhuurdesk'!J26="JA","Strijdigheden vastgesteld",IF('Overzicht inhuurdesk'!K26="Ja","Meer dan 1x aangeboden",IF('Overzicht inhuurdesk'!G26="Nee","Voldoet niet aan eisen volgens opdrachtnemer","OK"))))," ") ->  | H28: =IF('Overzicht inhuurdesk'!$B26<>"",'Overzicht inhuurdesk'!N26,"") ->  | P28: =IF('Overzicht inhuurdesk'!$B26>"",SUM(I28:O28),"") -> 
A29: 16 | B29: ='Overzicht inhuurdesk'!B27 -> 0 | C29: ='Overzicht inhuurdesk'!C27 -> 0 | D29: ='Overzicht inhuurdesk'!D27 -> 0 | E29: =IF(B29>" ",IF('Overzicht inhuurdesk'!I27="Ja","Voorwaardelijke inschrijving",IF('Overzicht inhuurdesk'!J27="JA","Strijdigheden vastgesteld",IF('Overzicht inhuurdesk'!K27="Ja","Meer dan 1x aangeboden",IF('Overzicht inhuurdesk'!G27="Nee","Voldoet niet aan eisen volgens opdrachtnemer","OK"))))," ") ->  | H29: =IF('Overzicht inhuurdesk'!$B27<>"",'Overzicht inhuurdesk'!N27,"") ->  | P29: =IF('Overzicht inhuurdesk'!$B27>"",SUM(I29:O29),"") -> 
A30: 17 | B30: ='Overzicht inhuurdesk'!B28 -> 0 | C30: ='Overzicht inhuurdesk'!C28 -> 0 | D30: ='Overzicht inhuurdesk'!D28 -> 0 | E30: =IF(B30>" ",IF('Overzicht inhuurdesk'!I28="Ja","Voorwaardelijke inschrijving",IF('Overzicht inhuurdesk'!J28="JA","Strijdigheden vastgesteld",IF('Overzicht inhuurdesk'!K28="Ja","Meer dan 1x aangeboden",IF('Overzicht inhuurdesk'!G28="Nee","Voldoet niet aan eisen volgens opdrachtnemer","OK"))))," ") ->  | H30: =IF('Overzicht inhuurdesk'!$B28<>"",'Overzicht inhuurdesk'!N28,"") ->  | P30: =IF('Overzicht inhuurdesk'!$B28>"",SUM(I30:O30),"") -> 
A31: 18 | B31: ='Overzicht inhuurdesk'!B29 -> 0 | C31: ='Overzicht inhuurdesk'!C29 -> 0 | D31: ='Overzicht inhuurdesk'!D29 -> 0 | E31: =IF(B31>" ",IF('Overzicht inhuurdesk'!I29="Ja","Voorwaardelijke inschrijving",IF('Overzicht inhuurdesk'!J29="JA","Strijdigheden vastgesteld",IF('Overzicht inhuurdesk'!K29="Ja","Meer dan 1x aangeboden",IF('Overzicht inhuurdesk'!G29="Nee","Voldoet niet aan eisen volgens opdrachtnemer","OK"))))," ") ->  | H31: =IF('Overzicht inhuurdesk'!$B29<>"",'Overzicht inhuurdesk'!N29,"") ->  | P31: =IF('Overzicht inhuurdesk'!$B29>"",SUM(I31:O31),"") -> 
A32: 19 | B32: ='Overzicht inhuurdesk'!B30 -> 0 | C32: ='Overzicht inhuurdesk'!C30 -> 0 | D32: ='Overzicht inhuurdesk'!D30 -> 0 | E32: =IF(B32>" ",IF('Overzicht inhuurdesk'!I30="Ja","Voorwaardelijke inschrijving",IF('Overzicht inhuurdesk'!J30="JA","Strijdigheden vastgesteld",IF('Overzicht inhuurdesk'!K30="Ja","Meer dan 1x aangeboden",IF('Overzicht inhuurdesk'!G30="Nee","Voldoet niet aan eisen volgens opdrachtnemer","OK"))))," ") ->  | H32: =IF('Overzicht inhuurdesk'!$B30<>"",'Overzicht inhuurdesk'!N30,"") ->  | P32: =IF('Overzicht inhuurdesk'!$B30>"",SUM(I32:O32),"") -> 
A33: 20 | B33: ='Overzicht inhuurdesk'!B31 -> 0 | C33: ='Overzicht inhuurdesk'!C31 -> 0 | D33: ='Overzicht inhuurdesk'!D31 -> 0 | E33: =IF(B33>" ",IF('Overzicht inhuurdesk'!I31="Ja","Voorwaardelijke inschrijving",IF('Overzicht inhuurdesk'!J31="JA","Strijdigheden vastgesteld",IF('Overzicht inhuurdesk'!K31="Ja","Meer dan 1x aangeboden",IF('Overzicht inhuurdesk'!G31="Nee","Voldoet niet aan eisen volgens opdrachtnemer","OK"))))," ") ->  | H33: =IF('Overzicht inhuurdesk'!$B31<>"",'Overzicht inhuurdesk'!N31,"") ->  | P33: =IF('Overzicht inhuurdesk'!$B31>"",SUM(I33:O33),"") -> 
A34: 21 | B34: ='Overzicht inhuurdesk'!B32 -> 0 | C34: ='Overzicht inhuurdesk'!C32 -> 0 | D34: ='Overzicht inhuurdesk'!D32 -> 0 | E34: =IF(B34>" ",IF('Overzicht inhuurdesk'!I32="Ja","Voorwaardelijke inschrijving",IF('Overzicht inhuurdesk'!J32="JA","Strijdigheden vastgesteld",IF('Overzicht inhuurdesk'!K32="Ja","Meer dan 1x aangeboden",IF('Overzicht inhuurdesk'!G32="Nee","Voldoet niet aan eisen volgens opdrachtnemer","OK"))))," ") ->  | H34: =IF('Overzicht inhuurdesk'!$B32<>"",'Overzicht inhuurdesk'!N32,"") ->  | P34: =IF('Overzicht inhuurdesk'!$B32>"",SUM(I34:O34),"") -> 
A35: 22 | B35: ='Overzicht inhuurdesk'!B33 -> 0 | C35: ='Overzicht inhuurdesk'!C33 -> 0 | D35: ='Overzicht inhuurdesk'!D33 -> 0 | E35: =IF(B35>" ",IF('Overzicht inhuurdesk'!I33="Ja","Voorwaardelijke inschrijving",IF('Overzicht inhuurdesk'!J33="JA","Strijdigheden vastgesteld",IF('Overzicht inhuurdesk'!K33="Ja","Meer dan 1x aangeboden",IF('Overzicht inhuurdesk'!G33="Nee","Voldoet niet aan eisen volgens opdrachtnemer","OK"))))," ") ->  | H35: =IF('Overzicht inhuurdesk'!$B33<>"",'Overzicht inhuurdesk'!N33,"") ->  | P35: =IF('Overzicht inhuurdesk'!$B33>"",SUM(I35:O35),"") -> 
A36: 23 | B36: ='Overzicht inhuurdesk'!B34 -> 0 | C36: ='Overzicht inhuurdesk'!C34 -> 0 | D36: ='Overzicht inhuurdesk'!D34 -> 0 | E36: =IF(B36>" ",IF('Overzicht inhuurdesk'!I34="Ja","Voorwaardelijke inschrijving",IF('Overzicht inhuurdesk'!J34="JA","Strijdigheden vastgesteld",IF('Overzicht inhuurdesk'!K34="Ja","Meer dan 1x aangeboden",IF('Overzicht inhuurdesk'!G34="Nee","Voldoet niet aan eisen volgens opdrachtnemer","OK"))))," ") ->  | H36: =IF('Overzicht inhuurdesk'!$B34<>"",'Overzicht inhuurdesk'!N34,"") ->  | P36: =IF('Overzicht inhuurdesk'!$B34>"",SUM(I36:O36),"") -> 
A37: 24 | B37: ='Overzicht inhuurdesk'!B35 -> 0 | C37: ='Overzicht inhuurdesk'!C35 -> 0 | D37: ='Overzicht inhuurdesk'!D35 -> 0 | E37: =IF(B37>" ",IF('Overzicht inhuurdesk'!I35="Ja","Voorwaardelijke inschrijving",IF('Overzicht inhuurdesk'!J35="JA","Strijdigheden vastgesteld",IF('Overzicht inhuurdesk'!K35="Ja","Meer dan 1x aangeboden",IF('Overzicht inhuurdesk'!G35="Nee","Voldoet niet aan eisen volgens opdrachtnemer","OK"))))," ") ->  | H37: =IF('Overzicht inhuurdesk'!$B35<>"",'Overzicht inhuurdesk'!N35,"") ->  | P37: =IF('Overzicht inhuurdesk'!$B35>"",SUM(I37:O37),"") -> 
A38: 25 | B38: ='Overzicht inhuurdesk'!B36 -> 0 | C38: ='Overzicht inhuurdesk'!C36 -> 0 | D38: ='Overzicht inhuurdesk'!D36 -> 0 | E38: =IF(B38>" ",IF('Overzicht inhuurdesk'!I36="Ja","Voorwaardelijke inschrijving",IF('Overzicht inhuurdesk'!J36="JA","Strijdigheden vastgesteld",IF('Overzicht inhuurdesk'!K36="Ja","Meer dan 1x aangeboden",IF('Overzicht inhuurdesk'!G36="Nee","Voldoet niet aan eisen volgens opdrachtnemer","OK"))))," ") ->  | H38: =IF('Overzicht inhuurdesk'!$B36<>"",'Overzicht inhuurdesk'!N36,"") ->  | P38: =IF('Overzicht inhuurdesk'!$B36>"",SUM(I38:O38),"") -> 
A39: 26 | B39: ='Overzicht inhuurdesk'!B37 -> 0 | C39: ='Overzicht inhuurdesk'!C37 -> 0 | D39: ='Overzicht inhuurdesk'!D37 -> 0 | E39: =IF(B39>" ",IF('Overzicht inhuurdesk'!I37="Ja","Voorwaardelijke inschrijving",IF('Overzicht inhuurdesk'!J37="JA","Strijdigheden vastgesteld",IF('Overzicht inhuurdesk'!K37="Ja","Meer dan 1x aangeboden",IF('Overzicht inhuurdesk'!G37="Nee","Voldoet niet aan eisen volgens opdrachtnemer","OK"))))," ") ->  | H39: =IF('Overzicht inhuurdesk'!$B37<>"",'Overzicht inhuurdesk'!N37,"") ->  | P39: =IF('Overzicht inhuurdesk'!$B37>"",SUM(I39:O39),"") -> 
A40: 27 | B40: ='Overzicht inhuurdesk'!B38 -> 0 | C40: ='Overzicht inhuurdesk'!C38 -> 0 | D40: ='Overzicht inhuurdesk'!D38 -> 0 | E40: =IF(B40>" ",IF('Overzicht inhuurdesk'!I38="Ja","Voorwaardelijke inschrijving",IF('Overzicht inhuurdesk'!J38="JA","Strijdigheden vastgesteld",IF('Overzicht inhuurdesk'!K38="Ja","Meer dan 1x aangeboden",IF('Overzicht inhuurdesk'!G38="Nee","Voldoet niet aan eisen volgens opdrachtnemer","OK"))))," ") ->  | H40: =IF('Overzicht inhuurdesk'!$B38<>"",'Overzicht inhuurdesk'!N38,"") ->  | P40: =IF('Overzicht inhuurdesk'!$B38>"",SUM(I40:O40),"") -> 
A41: 28 | B41: ='Overzicht inhuurdesk'!B39 -> 0 | C41: ='Overzicht inhuurdesk'!C39 -> 0 | D41: ='Overzicht inhuurdesk'!D39 -> 0 | E41: =IF(B41>" ",IF('Overzicht inhuurdesk'!I39="Ja","Voorwaardelijke inschrijving",IF('Overzicht inhuurdesk'!J39="JA","Strijdigheden vastgesteld",IF('Overzicht inhuurdesk'!K39="Ja","Meer dan 1x aangeboden",IF('Overzicht inhuurdesk'!G39="Nee","Voldoet niet aan eisen volgens opdrachtnemer","OK"))))," ") ->  | H41: =IF('Overzicht inhuurdesk'!$B39<>"",'Overzicht inhuurdesk'!N39,"") ->  | P41: =IF('Overzicht inhuurdesk'!$B39>"",SUM(I41:O41),"") -> 
A42: 29 | B42: ='Overzicht inhuurdesk'!B40 -> 0 | C42: ='Overzicht inhuurdesk'!C40 -> 0 | D42: ='Overzicht inhuurdesk'!D40 -> 0 | E42: =IF(B42>" ",IF('Overzicht inhuurdesk'!I40="Ja","Voorwaardelijke inschrijving",IF('Overzicht inhuurdesk'!J40="JA","Strijdigheden vastgesteld",IF('Overzicht inhuurdesk'!K40="Ja","Meer dan 1x aangeboden",IF('Overzicht inhuurdesk'!G40="Nee","Voldoet niet aan eisen volgens opdrachtnemer","OK"))))," ") ->  | H42: =IF('Overzicht inhuurdesk'!$B40<>"",'Overzicht inhuurdesk'!N40,"") ->  | P42: =IF('Overzicht inhuurdesk'!$B40>"",SUM(I42:O42),"") -> 
A43: 30 | B43: ='Overzicht inhuurdesk'!B41 -> 0 | C43: ='Overzicht inhuurdesk'!C41 -> 0 | D43: ='Overzicht inhuurdesk'!D41 -> 0 | E43: =IF(B43>" ",IF('Overzicht inhuurdesk'!I41="Ja","Voorwaardelijke inschrijving",IF('Overzicht inhuurdesk'!J41="JA","Strijdigheden vastgesteld",IF('Overzicht inhuurdesk'!K41="Ja","Meer dan 1x aangeboden",IF('Overzicht inhuurdesk'!G41="Nee","Voldoet niet aan eisen volgens opdrachtnemer","OK"))))," ") ->  | H43: =IF('Overzicht inhuurdesk'!$B41<>"",'Overzicht inhuurdesk'!N41,"") ->  | P43: =IF('Overzicht inhuurdesk'!$B41>"",SUM(I43:O43),"") -> 
A44: 31 | B44: ='Overzicht inhuurdesk'!B42 -> 0 | C44: ='Overzicht inhuurdesk'!C42 -> 0 | D44: ='Overzicht inhuurdesk'!D42 -> 0 | E44: =IF(B44>" ",IF('Overzicht inhuurdesk'!I42="Ja","Voorwaardelijke inschrijving",IF('Overzicht inhuurdesk'!J42="JA","Strijdigheden vastgesteld",IF('Overzicht inhuurdesk'!K42="Ja","Meer dan 1x aangeboden",IF('Overzicht inhuurdesk'!G42="Nee","Voldoet niet aan eisen volgens opdrachtnemer","OK"))))," ") ->  | H44: =IF('Overzicht inhuurdesk'!$B42<>"",'Overzicht inhuurdesk'!N42,"") ->  | P44: =IF('Overzicht inhuurdesk'!$B42>"",SUM(I44:O44),"") -> 
A45: 32 | B45: ='Overzicht inhuurdesk'!B43 -> 0 | C45: ='Overzicht inhuurdesk'!C43 -> 0 | D45: ='Overzicht inhuurdesk'!D43 -> 0 | E45: =IF(B45>" ",IF('Overzicht inhuurdesk'!I43="Ja","Voorwaardelijke inschrijving",IF('Overzicht inhuurdesk'!J43="JA","Strijdigheden vastgesteld",IF('Overzicht inhuurdesk'!K43="Ja","Meer dan 1x aangeboden",IF('Overzicht inhuurdesk'!G43="Nee","Voldoet niet aan eisen volgens opdrachtnemer","OK"))))," ") ->  | H45: =IF('Overzicht inhuurdesk'!$B43<>"",'Overzicht inhuurdesk'!N43,"") ->  | P45: =IF('Overzicht inhuurdesk'!$B43>"",SUM(I45:O45),"") -> 
A46: 33 | B46: ='Overzicht inhuurdesk'!B44 -> 0 | C46: ='Overzicht inhuurdesk'!C44 -> 0 | D46: ='Overzicht inhuurdesk'!D44 -> 0 | E46: =IF(B46>" ",IF('Overzicht inhuurdesk'!I44="Ja","Voorwaardelijke inschrijving",IF('Overzicht inhuurdesk'!J44="JA","Strijdigheden vastgesteld",IF('Overzicht inhuurdesk'!K44="Ja","Meer dan 1x aangeboden",IF('Overzicht inhuurdesk'!G44="Nee","Voldoet niet aan eisen volgens opdrachtnemer","OK"))))," ") ->  | H46: =IF('Overzicht inhuurdesk'!$B44<>"",'Overzicht inhuurdesk'!N44,"") ->  | P46: =IF('Overzicht inhuurdesk'!$B44>"",SUM(I46:O46),"") -> 
A47: 34 | B47: ='Overzicht inhuurdesk'!B45 -> 0 | C47: ='Overzicht inhuurdesk'!C45 -> 0 | D47: ='Overzicht inhuurdesk'!D45 -> 0 | E47: =IF(B47>" ",IF('Overzicht inhuurdesk'!I45="Ja","Voorwaardelijke inschrijving",IF('Overzicht inhuurdesk'!J45="JA","Strijdigheden vastgesteld",IF('Overzicht inhuurdesk'!K45="Ja","Meer dan 1x aangeboden",IF('Overzicht inhuurdesk'!G45="Nee","Voldoet niet aan eisen volgens opdrachtnemer","OK"))))," ") ->  | H47: =IF('Overzicht inhuurdesk'!$B45<>"",'Overzicht inhuurdesk'!N45,"") ->  | P47: =IF('Overzicht inhuurdesk'!$B45>"",SUM(I47:O47),"") -> 
A48: 35 | B48: ='Overzicht inhuurdesk'!B46 -> 0 | C48: ='Overzicht inhuurdesk'!C46 -> 0 | D48: ='Overzicht inhuurdesk'!D46 -> 0 | E48: =IF(B48>" ",IF('Overzicht inhuurdesk'!I46="Ja","Voorwaardelijke inschrijving",IF('Overzicht inhuurdesk'!J46="JA","Strijdigheden vastgesteld",IF('Overzicht inhuurdesk'!K46="Ja","Meer dan 1x aangeboden",IF('Overzicht inhuurdesk'!G46="Nee","Voldoet niet aan eisen volgens opdrachtnemer","OK"))))," ") ->  | H48: =IF('Overzicht inhuurdesk'!$B46<>"",'Overzicht inhuurdesk'!N46,"") ->  | P48: =IF('Overzicht inhuurdesk'!$B46>"",SUM(I48:O48),"") -> 
A49: 36 | B49: ='Overzicht inhuurdesk'!B47 -> 0 | C49: ='Overzicht inhuurdesk'!C47 -> 0 | D49: ='Overzicht inhuurdesk'!D47 -> 0 | E49: =IF(B49>" ",IF('Overzicht inhuurdesk'!I47="Ja","Voorwaardelijke inschrijving",IF('Overzicht inhuurdesk'!J47="JA","Strijdigheden vastgesteld",IF('Overzicht inhuurdesk'!K47="Ja","Meer dan 1x aangeboden",IF('Overzicht inhuurdesk'!G47="Nee","Voldoet niet aan eisen volgens opdrachtnemer","OK"))))," ") ->  | H49: =IF('Overzicht inhuurdesk'!$B47<>"",'Overzicht inhuurdesk'!N47,"") ->  | P49: =IF('Overzicht inhuurdesk'!$B47>"",SUM(I49:O49),"") -> 
A50: 37 | B50: ='Overzicht inhuurdesk'!B48 -> 0 | C50: ='Overzicht inhuurdesk'!C48 -> 0 | D50: ='Overzicht inhuurdesk'!D48 -> 0 | E50: =IF(B50>" ",IF('Overzicht inhuurdesk'!I48="Ja","Voorwaardelijke inschrijving",IF('Overzicht inhuurdesk'!J48="JA","Strijdigheden vastgesteld",IF('Overzicht inhuurdesk'!K48="Ja","Meer dan 1x aangeboden",IF('Overzicht inhuurdesk'!G48="Nee","Voldoet niet aan eisen volgens opdrachtnemer","OK"))))," ") ->  | H50: =IF('Overzicht inhuurdesk'!$B48<>"",'Overzicht inhuurdesk'!N48,"") ->  | P50: =IF('Overzicht inhuurdesk'!$B48>"",SUM(I50:O50),"") -> 
A51: 38 | B51: ='Overzicht inhuurdesk'!B49 -> 0 | C51: ='Overzicht inhuurdesk'!C49 -> 0 | D51: ='Overzicht inhuurdesk'!D49 -> 0 | E51: =IF(B51>" ",IF('Overzicht inhuurdesk'!I49="Ja","Voorwaardelijke inschrijving",IF('Overzicht inhuurdesk'!J49="JA","Strijdigheden vastgesteld",IF('Overzicht inhuurdesk'!K49="Ja","Meer dan 1x aangeboden",IF('Overzicht inhuurdesk'!G49="Nee","Voldoet niet aan eisen volgens opdrachtnemer","OK"))))," ") ->  | H51: =IF('Overzicht inhuurdesk'!$B49<>"",'Overzicht inhuurdesk'!N49,"") ->  | P51: =IF('Overzicht inhuurdesk'!$B49>"",SUM(I51:O51),"") -> 
A52: 39 | B52: ='Overzicht inhuurdesk'!B50 -> 0 | C52: ='Overzicht inhuurdesk'!C50 -> 0 | D52: ='Overzicht inhuurdesk'!D50 -> 0 | E52: =IF(B52>" ",IF('Overzicht inhuurdesk'!I50="Ja","Voorwaardelijke inschrijving",IF('Overzicht inhuurdesk'!J50="JA","Strijdigheden vastgesteld",IF('Overzicht inhuurdesk'!K50="Ja","Meer dan 1x aangeboden",IF('Overzicht inhuurdesk'!G50="Nee","Voldoet niet aan eisen volgens opdrachtnemer","OK"))))," ") ->  | H52: =IF('Overzicht inhuurdesk'!$B50<>"",'Overzicht inhuurdesk'!N50,"") ->  | P52: =IF('Overzicht inhuurdesk'!$B50>"",SUM(I52:O52),"") -> 
A53: 40 | B53: ='Overzicht inhuurdesk'!B51 -> 0 | C53: ='Overzicht inhuurdesk'!C51 -> 0 | D53: ='Overzicht inhuurdesk'!D51 -> 0 | E53: =IF(B53>" ",IF('Overzicht inhuurdesk'!I51="Ja","Voorwaardelijke inschrijving",IF('Overzicht inhuurdesk'!J51="JA","Strijdigheden vastgesteld",IF('Overzicht inhuurdesk'!K51="Ja","Meer dan 1x aangeboden",IF('Overzicht inhuurdesk'!G51="Nee","Voldoet niet aan eisen volgens opdrachtnemer","OK"))))," ") ->  | H53: =IF('Overzicht inhuurdesk'!$B51<>"",'Overzicht inhuurdesk'!N51,"") ->  | P53: =IF('Overzicht inhuurdesk'!$B51>"",SUM(I53:O53),"") -> 

Sheet Rapportage Info
A1: Rapportagegegevens Inhuur Aanvraag ICT Professional | E1: Referentienummer | F1: =Inhuurformulier!D1 -> 0
A3: U kunt de ingevulde rubrieken overnemen (Kopiëren/Plakken) op uw rapportagewerkblad
A4: Voor vragen kunt u contact opnemen met de contractmanager bereikbaar via : | F4: ='Brongegevens dienst'!B20 -> iuc-inhuur@iuc-noord.nl
A6: INFORMATIE VOOR RAPPORTAGE OPDRACHTNEMERS TABBLAD Aanvragen
A8: Datum Aanvraag (dd-mm-jjjj) | B8: Referentie(nummer) Aanvraag van Deelnemer | C8: Ministerie | D8: Deelnemer | E8: Dienstonderdeel | F8: Functienaam (roepnaam) | G8: Salaris schaal Rijk | H8: Functiegroep (Functie Gebouw Rijk) | I8: Dominante kwaliteitenprofiel conform Kwaliteitsraamwerk Informatievoorzieing (KWIV) | J8: Max. tarief (Ja/Nee) | K8: Doelgroep social return gevraagd (Ja/Nee/ Indifferent) social return | L8: Type Aanvraag | M8: Startdatum initiële inhuurtermijn (dd-mm-jjjj) | N8: Einddatum initiële inhuurtermijn (dd-mm-jjjj) | O8: Aantal uren initiële inhuurtermijn
A9: =Inhuurformulier!C33 -> 2025-11-03T16:38:54.940 | B9: =Inhuurformulier!D1 -> 0 | C9: =Inhuurformulier!B17 -> OCW | D9: =Inhuurformulier!B18 -> AWTI | E9: =Inhuurformulier!B19 -> 0 | F9: =Inhuurformulier!B57 -> 0 | G9: =Inhuurformulier!B55 -> 0 | H9: =Inhuurformulier!B52 -> Expert IV | I9: =Inhuurformulier!B50 -> 1.1.3 APPLICATIEARCHITECTUUR | J9: =IF(AND(Inhuurformulier!B6>0,Inhuurformulier!B6<226),"Ja","Nee") -> Nee | K9: Indifferent | L9: =Inhuurformulier!B5 -> 0 | M9: =Inhuurformulier!C111 -> 00:00:00 | N9: =Inhuurformulier!C112 -> 00:00:00 | O9: =Inhuurformulier!C120 -> 0
A11: INFORMATIE VOOR RAPPORTAGE OPDRACHTNEMERS TABBLAD NOK's
A13: Referentienummer NOK van Deelnemer | B13: Referentie(nummer) Aanvraag van Deelnemer | C13: Soort minicompetitie | D13: Ministerie | E13: Deelnemer | F13: Dienstonderdeel | G13: Functienaam (roepnaam) | H13: Salaris schaal Rijk | I13: Functiegroep (Functie Gebouw Rijk) | J13: Dominante kwaliteitenprofiel conform Kwaliteitsraamwerk Informatievoorzieing (KWIV) | P13: Aantal uren initiële inhuurtermijn
B14: =Inhuurformulier!D1 -> 0 | C14: =Inhuurformulier!B4 -> 0 | D14: =Inhuurformulier!B17 -> OCW | E14: =Inhuurformulier!B18 -> AWTI | F14: =Inhuurformulier!B19 -> 0 | G14: =Inhuurformulier!B57 -> 0 | H14: =Inhuurformulier!B55 -> 0 | I14: =Inhuurformulier!B52 -> Expert IV | J14: =Inhuurformulier!B50 -> 1.1.3 APPLICATIEARCHITECTUUR | P14: =Inhuurformulier!C126 -> 0

Sheet Brongegevens dienst (hidden)
A1: Aanvraagopties | C1: ORGANISATIE | H1: FEESTDAGEN | S1: LEVERANCIERSINFORMATIE
A2: Bij meerdere geschikte kandidaten behoudt de dienst zich het recht voor om meerdere gunningen te doen. | C2: Ministerie (niet wijzigen!) | D2: Deelnemer (niet wijzigen!) | E2: Dienstonderdeel (sorteer A-Z) | F2: Emailadres | G2: Standaard tekst | H2: Jaar | I2: 1e Paasdag | J2: 2e Paasdag | K2: Bevrijdingsdag | L2: Hemelvaartsdag | M2: Koningsdag | N2: 1e Pinksterdag | O2: 2e Pinksterdag | P2: 1e Kerstdag | Q2: 2e Kertsdag | R2: Nieuwjaar | S2: Naam (niet wijzigen) | T2: Worden niet gebruikt door dienst. Wel laten staan. | Y2: Email-adres | Z2: OCW (niet wijzigen!!)
C3: OCW | D3: AWTI | E3: Zelf invullen | F3: iuc-inhuur@iuc-noord.nl | G3: De Adviesraad voor wetenschap, technologie en innovatie (AWTI) is de onafhankelijke adviesraad van de regering en het parlement op het terrein van wetenschap, technologie en innovatie. Met zijn strategische beleidsadviezen wil de AWTI bijdragen aan het versterken van de innovatieve, wetenschappelijke en technologische kracht van mensen, bedrijven en kennisinstellingen in Nederland. En daarmee aan een toekomstbestendige Nederlandse economie en samenleving. | H3: 2016 | I3: =FIXED(("4/"&H3)/7+MOD(MOD(H3,19)*19-7,30)*14%,0)*7-6 -> 42456 | J3: =I3+1 -> 42457 | K3: 42495 | L3: =I3+39 -> 42495 | M3: 42487 | N3: =I3+49 -> 42505 | O3: =I3+50 -> 42506 | P3: =DATE(H3,12,25) -> 42729 | Q3: =DATE(H3,12,26) -> 42730 | R3: =DATE(H3,1,1) -> 42370 | S3: Cegeka | Y3: resources@cegeka.com | Z3: AWTI
D4: Bestuursdepartement | F4: iuc-inhuur@iuc-noord.nl | G4: OCW bestaat uit een bestuursdepartement en tien daarbuiten gepositioneerde dienstonderdelen Het bestuursdepartement ontwikkelt het beleid op de terreinen onderwijs, cultuur en wetenschap. | H4: 2017 | I4: =FIXED(("4/"&H4)/7+MOD(MOD(H4,19)*19-7,30)*14%,0)*7-6 -> 42841 | J4: =I4+1 -> 42842 | K4: 42860 | L4: =I4+39 -> 42880 | M4: 42852 | N4: =I4+49 -> 42890 | O4: =I4+50 -> 42891 | P4: =DATE(H4,12,25) -> 43094 | Q4: =DATE(H4,12,26) -> 43095 | R4: =DATE(H4,1,1) -> 42736 | S4: CIMSOLUTIONScombi | Y4: OCW-overig@cimsolutions.nl | Z4: Bestuursdepartement
A5: Lijst 1 | B5: Lijst 2 | D5: CvTE | F5: iuc-inhuur@iuc-noord.nl | G5: Het College voor Toetsen en Examens (CvTE) is namens de overheid verantwoordelijk voor de kwaliteit en het niveau van de centrale examens en toetsen in Nederland. Het heeft verschillende examens en toetsen onder zijn hoede waaronder de centrale examens en de Staatsexamens in het voortgezet onderwijs, de centrale examens in het mbo, de Centrale Eindtoets in het po en de Staatsexamens Nederlands als tweede taal (Nt2). Voor verdere informatie zie www.cvte.nl | H5: 2018 | I5: 43191 | J5: 43192 | L5: 43230 | M5: 43217 | N5: 43240 | O5: 43241 | P5: 43459 | Q5: 43460 | R5: 43101 | S5: Hero | Y5: ocw.aanvragen@hero.eu | Z5: CvTE
A6: Ja | B6: Ja | D6: DUO | F6: iuc-inhuur@iuc-noord.nl | G6: 'DUO verzorgt als uitvoeringsorganisatie, zijnde onderdeel van het Ministerie van Onderwijs, Cultuur en Wetenschap de uitvoering van complexe wet- en regelgeving en heeft een uitgebreid dienstenpakket. DUO financiert en informeert onderwijsdeelnemers en onderwijsinstellingen. Voor verdere informatie zie www.duo.nl | H6: 2019 | I6: 43576 | J6: 43577 | K6: 43590 | L6: 43615 | N6: 43625 | O6: 43626 | P6: 43824 | Q6: 43825 | R6: 43466 | S6: Need Staffing | Y6: resourcemanagement@needstaffing.nl | Z6: DUO
A7: Nee | B7: Nee | D7: Inspectie Overheidsinformatie en Erfgoed | F7: iuc-inhuur@iuc-noord.nl | G7: De Inspectie Overheidsinformatie en Erfgoed (voorheen Erfgoedinspectie) houdt toezicht op een deel van het Nederlandse erfgoed en op het informatiebeheer bij de Rijksoverheid. Ook levert de inspectie een belangrijke bijdrage aan het tegengaan van illegale handel in cultuurgoederen. De Inspectie draagt zo bij aan het behoud en beheer van het nationale erfgoed. | H7: 2020 | I7: 43933 | J7: 43934 | K7: 43956 | L7: 43972 | M7: 43948 | N7: 43982 | O7: 43983 | P7: 44190 | Q7: 44191 | R7: 43831 | S7: Seven Stars | Y7: OCW@sevenstars.nl | Z7: Inspectie Overheidsinformatie en Erfgoed
B8: Indifferent | D8: IvhO | F8: iuc-inhuur@iuc-noord.nl | G8: De Inspectie van het Onderwijs bekijkt jaarlijks of er aanwijzingen zijn dat scholen onvoldoende kwaliteit leveren. Op basis van een risicoanalyse en eventueel extra onderzoek wordt dan gekeken of een school extra toezicht nodig heeft. Daarnaast houdt de inspectie de (financiële) gezondheid van besturen in de gaten en houdt ze toezicht op het (accreditatie)stelsel van hoger onderwijs. Voor verdere informatie zie www.onderwijsinspectie.nl | H8: 2021 | I8: 44290 | J8: 44291 | K8: 44321 | L8: 44329 | M8: 44313 | N8: 44339 | O8: 44340 | P8: 44555 | Q8: 44556 | R8: 44197 | S8: Sopra Steria | Y8: ocw.nl@soprasteria.com | Z8: IvhO
A9: Stamlocatie ICT Inhuur Documenten | D9: NA | F9: iuc-inhuur@iuc-noord.nl | G9: Het Nationaal Archief beheert en presenteert bijna duizend jaar geschiedenis van Nederland. 137 kilometer archieven, 15 miljoen foto's, 300.000 kaarten en tekeningen, en 440 terabyte aan digitale bestanden vormen het geheugen van Nederland. Voor verdere informatie zie www.nationaalarchief.nl | H9: 2022 | I9: 44668 | J9: 44669 | K9: 44686 | L9: 44707 | M9: 44678 | N9: 44717 | O9: 44718 | P9: 44920 | Q9: 44921 | R9: 44562 | Z9: NA
A10: K:\5 Inkooptrajecten\5.7 Inhuur\ICT\ | D10: Nederlandse Unesco Commissie | F10: iuc-inhuur@iuc-noord.nl | H10: 2023 | I10: 45025 | J10: 45026 | K10: 45051 | L10: 45064 | M10: 45043 | N10: 45074 | O10: 45075 | P10: 45285 | Q10: 45286 | R10: 44927 | Z10: Nederlandse Unesco Commissie
D11: Onderwijsraad | F11: iuc-inhuur@iuc-noord.nl | G11: De Onderwijsraad is een onafhankelijk adviescollege, opgericht in 1919. De raad adviseert de regering en de Kamer, gevraagd en ongevraagd, over hoofdlijnen van beleid en wetgeving op het gebied van het onderwijs. | H11: 2024 | I11: 45382 | J11: 45383 | L11: 45421 | N11: 45431 | O11: 45432 | P11: 45651 | Q11: 45652 | R11: 45292 | Z11: Onderwijsraad
A12: Versienummer formulier | B12: 1.1 | D12: RCE | F12: iuc-inhuur@iuc-noord.nl | G12: De Rijksdienst voor het Cultureel Erfgoed is het kennisinstituut voor roerend en onroerend erfgoed. Deze kennis zet de Rijksdienst in om met wetten en regels het erfgoed te beschermen en te ontwikkelen. Samen met anderen is de Rijksdienst voor Cultureel Erfgoed verantwoordelijk voor de zorg van het Nederlands erfgoed boven en onder de grond en onder water. Voor verdere informatie zie www.cultureelerfgoed.nl | H12: 2025 | I12: 45767 | J12: 45768 | K12: 45782 | L12: 45806 | N12: 45816 | O12: 45817 | P12: 46016 | Q12: 46017 | R12: 45658 | Z12: RCE
A13: Status Aanvraag | B13: Status Kandidaat | D13: RVC | F13: iuc-inhuur@iuc-noord.nl | G13: De Raad voor Cultuur is het wettelijke adviesorgaan van de regering en het parlement op het terrein van kunst, cultuur en media. De raad is onafhankelijk en adviseert, gevraagd en ongevraagd, over actuele beleidskwesties en subsidieaanvragen. | H13: 2026 | I13: 46117 | J13: 46118 | K13: 46147 | L13: 46156 | M13: 46139 | N13: 46166 | O13: 46167 | P13: 46381 | Q13: 46382 | R13: 46023 | Z13: RVC
A14: Open | B14: Open | H14: 2027 | I14: 46474 | J14: 46475 | K14: 46512 | L14: 46513 | M14: 46504 | N14: 46523 | O14: 46524 | P14: 46746 | Q14: 46747 | R14: 46388
A15: Beoordelen | B15: Beoordelen | H15: 2028 | I15: 46859 | J15: 46860 | K15: 46878 | L15: 46898 | M15: 46870 | N15: 46908 | O15: 46909 | P15: 47112 | Q15: 47113 | R15: 46753
A16: Gunnen | B16: Gesprek | H16: 2029 | I16: 47209 | J16: 47210 | L16: 47248 | M16: 47235 | N16: 47258 | O16: 47259 | P16: 47477 | Q16: 47478 | R16: 47119
A17: Geen gunning | B17: Afgewezen | H17: 2030 | I17: 47594 | J17: 47595 | L17: =I17+39 -> 47633 | N17: =I17+49 -> 47643 | O17: =I17+50 -> 47644 | P17: =DATE(H17,12,25) -> 47842 | Q17: =DATE(H17,12,26) -> 47843 | R17: =DATE(H17,1,1) -> 47484
H18: 2031 | I18: 47951 | J18: 47952 | K18: 47973 | L18: =I18+39 -> 47990 | N18: =I18+49 -> 48000 | O18: =I18+50 -> 48001 | P18: =DATE(H18,12,25) -> 48207 | Q18: =DATE(H18,12,26) -> 48208 | R18: =DATE(H18,1,1) -> 47849
A19: Contractmanager | H19: 2032 | I19: 48301 | J19: 48302 | K19: 48339 | L19: 48340 | M19: 48331 | N19: 48350 | O19: 48351 | P19: 48573 | Q19: 48574 | R19: 48214
A20: Emailadres | B20: iuc-inhuur@iuc-noord.nl | H20: 2033 | I20: 48686 | J20: 48687 | K20: 48704 | L20: 48725 | M20: 48696 | N20: 48735 | O20: 48736 | P20: 48938 | Q20: 48939 | R20: 48580
A21: Telefoonnummer | H21: 2034 | I21: 49043 | J21: 49044 | K21: 49069 | L21: 49082 | M21: 12536 | N21: 49092 | O21: 49093 | P21: 49303 | Q21: 49304 | R21: 48945
A22: Standaard tekst dienst | H22: 2035 | I22: 49393 | J22: 49394 | L22: 49432 | N22: 49442 | O22: 49443 | P22: 49668 | Q22: 49669 | R22: 49310
H23: 2036 | I23: 49778 | J23: 49779 | K23: 49800 | L23: 49817 | N23: 49827 | O23: 49828 | P23: 50034 | Q23: 50035 | R23: 49675
H24: 2037 | I24: 50135 | J24: 50136 | K24: 50165 | L24: 50174 | M24: 50157 | N24: 50184 | O24: 50185 | P24: 50399 | Q24: 50400 | R24: 50041
H25: 2038 | I25: 50520 | J25: 50521 | K25: 50530 | L25: 50559 | M25: 50522 | N25: 50569 | O25: 50570 | P25: 50764 | Q25: 50765 | R25: 50406
H26: 2039 | I26: 50870 | J26: 50871 | K26: 50895 | L26: 50909 | M26: 50887 | N26: 50919 | O26: 50920 | P26: 51129 | Q26: 51130 | R26: 50771
A36: Soort | B36: Soort minicompetitie
A37: Regulier | B37: Met leiding en toezicht
A38: Proactief | B38: Zonder leiding en toezicht
A39: Strippenkaart
A40: Vrijblijvend
A41: Verambtelijking
A42: Cluster
A43: Standplaats | B43: Postcode
A44: Den Haag
A45: Utrecht
A46: Amersfoort
